{"text_format":"1","workbook":"xlsx","n_sheets":5,"sheets":["Standard & Custom MCC Groups","Air, Car Rental & Hotel List","TSYS","Ascending Order","Version"],"not_rendered":{"charts":0,"images":0,"macros":1,"external_links":0,"defined_names":31,"comments":0,"pivot_tables":0},"unopened":[],"bounds":{"document_bytes":16777216,"sheet_cells":100000,"rows_first":2000,"rows_last":500,"rows_between":2000,"halvings":0,"cell_chars":16384,"cell_head_chars":4096},"cells_cut":0,"cells_raw":0,"read":"whole","date_system":"1900"}

{"sheet":"Standard & Custom MCC Groups","index":0,"n_rows":348,"n_cols":20,"rows_kept":348,"cut":false,"hidden":false,"merged":[[0,0,2,0],[0,1,2,1]]}
["MERCHANT CATEGORY CODE\n(MCC)","MCC DESCRIPTION",null,"NAME OF GROUP:",null,"NAME OF GROUP:",null,"NAME OF GROUP:",null,"NAME OF GROUP:",null,"NAME OF GROUP:",null,"NAME OF GROUP:",null,"NAME OF GROUP:",null,"NAME OF GROUP:",null,"NAME OF GROUP:"]
[null,null,null,"NYSTRAV",null," NYS1",null,"NYSPURCH",null,"CUSTOM4",null,"CUSTOM5",null,"CUSTOM6",null,"CUSTOM7",null,"CUSTOM8",null,"CUSTOM9"]
[null,null,null,"INCLUDE",null,"INCLUDE",null,"INCLUDE",null,"INCLUDE",null,"INCLUDE",null,"INCLUDE",null,"INCLUDE",null,"INCLUDE",null,"INCLUDE"]
["Input 4 digit code here",{"$f":"IFERROR(VLOOKUP(A4,MCC_Search_01,2,FALSE),IFERROR(VLOOKUP(A4,MCC_Search_02,2,FALSE),\"MCC Description if valid code\"))","v":"MCC Description if valid code"}]
["AIRLINES"]
["3000-3301","AIRLINES (See Air, Car Rental & Hotel List)",null,"INCLUDE",null,"INCLUDE"]
["4511","AIRLINES ",null,"INCLUDE",null,"INCLUDE"]
["AGRICULTURAL SERVICES"]
["0742","VETERINARY SERVICES",null,"INCLUDE",null,null,null,"INCLUDE"]
["0763","AGRICULTURAL CO-OPERATIVE",null,null,null,null,null,"INCLUDE"]
["0780","LANDSCAPE/HORTICULTURAL SER",null,null,null,null,null,"INCLUDE"]
["BUSINESS SERVICES"]
["7311","ADVERTISING SERVICES",null,"INCLUDE",null,"INCLUDE",null,"INCLUDE"]
["7321","CONSUMER CR REPORTING AGEN",null,null,null,null,null,"INCLUDE"]
["7322","DEBT COLLECTION AGENCY",null,null,null,null,null,"INCLUDE"]
["7332","BLUEPRINT AND PHOTOCOPY SERVICE",null,null,null,null,null,"INCLUDE"]
["7333","COMMERCIAL PHOTO/ART/GRAPH",null,null,null,null,null,"INCLUDE"]
["7338","QUICK COPY/REPRO SERVICES",null,"INCLUDE",null,"INCLUDE",null,"INCLUDE"]
["7339","STENOGRAPHIC SERVICES",null,null,null,null,null,"INCLUDE"]
["7342","DISINFECT/EXTERMINATE SERV",null,null,null,null,null,"INCLUDE"]
["7349","CLEAN/MAINT/JANITORAL SERV",null,null,null,null,null,"INCLUDE"]
["7361","EMPLOYMENT/TEMP HELP AGEN",null,"INCLUDE",null,"INCLUDE",null,"INCLUDE"]
["7372","COMPUTER & D.P. SERVICES",null,null,null,null,null,"INCLUDE"]
["7375","INFORMATION RETRIEVAL SVCS",null,null,null,null,null,"INCLUDE"]
["7379","COMPUTER REPAIR & OTHR SVCS",null,null,null,null,null,"INCLUDE"]
["7392","MGMT/CONSULT/PUBLIC REL SER",null,null,null,null,null,"INCLUDE"]
["7393","DETECTIVE/PROTECTIVE AGEN",null,null,null,null,null,"INCLUDE"]
["7394","EQUIP/FURN RENT/LEASE SERV",null,null,null,null,null,"INCLUDE"]
["7395","PHOTOFINISH LABS/DEV",null,null,null,null,null,"INCLUDE"]
["7399","BUSINESS SERVICES",null,"INCLUDE",null,"INCLUDE",null,"INCLUDE"]
["7511","TRUCK STOPS",null,"INCLUDE",null,"INCLUDE",null,"INCLUDE"]
["7523","AUTO PARKING LOTS/GARAGES",null,"INCLUDE",null,"INCLUDE",null,"INCLUDE"]
["7524","EXPRESS PARKING LOTS/GARAGES",null,"INCLUDE",null,"INCLUDE",null,"INCLUDE"]
["7531","AUTO TOP/BODY REPAIR SHOPS",null,"INCLUDE",null,"INCLUDE",null,"INCLUDE"]
["7534","TIRE RETREAD/REPAIR SHOPS",null,"INCLUDE",null,"INCLUDE",null,"INCLUDE"]
["7535","AUTO PAINT SHOPS",null,"INCLUDE",null,"INCLUDE",null,"INCLUDE"]
["7538","AUTO REPAIR - NON DEALER",null,"INCLUDE",null,"INCLUDE",null,"INCLUDE"]
["7542","CAR WASHES",null,"INCLUDE",null,"INCLUDE",null,"INCLUDE"]
["7549","TOWING SERVICES",null,"INCLUDE",null,"INCLUDE",null,"INCLUDE"]
["7622","RADIO/TV/STEREO REPAIR SHOP",null,null,null,null,null,"INCLUDE"]
["7623","AIR COND/REFRIG REPAIR SHOP",null,null,null,null,null,"INCLUDE"]
["7629","SMALL APPLIANCE REPAIR ",null,null,null,null,null,"INCLUDE"]
["7631","WATCH/CLOCK/JEWELRY REPAIR",null,null,null,null,null,"INCLUDE"]
["7641","REUPHOLSTERY/REFINISH",null,null,null,null,null,"INCLUDE"]
["7692","WELDING",null,"INCLUDE",null,"INCLUDE",null,"INCLUDE"]
["7699","MISC REPAIR SERVICES",null,"INCLUDE",null,"INCLUDE",null,"INCLUDE"]
["7829","MOTION PICTURE & VIDEO DISTRB",null,null,null,null,null,"INCLUDE"]
["7832","MOTION PICTURE THEATRES",null,"INCLUDE",null,"INCLUDE",null,"INCLUDE"]
["7841","VIDEO TAPE RENTAL STORES",null,null,null,null,null,"INCLUDE"]
["7911","DANCE HALLS/STUDIOS/SCHOOLS",null,null,null,null,null,"INCLUDE"]
["7922","THEATRICAL PRODUCERS",null,null,null,null,null,"INCLUDE"]
["7929","BANDS/ORCHESTRAS/ENTERTAIN",null,null,null,null,null,"INCLUDE"]
["7932","BILLIARD/POOL ESTABLISHMENT",null,null,null,null,null,"INCLUDE"]
["7933","BOWLING ALLEYS",null,null,null,null,null,"INCLUDE"]
["7941","COMMERICAL/PRO SPORTS",null,null,null,null,null,"INCLUDE"]
["7991","TOURIST ATTRACTIONS AND XHB",null,null,null,null,null,"INCLUDE"]
["7992","PUBLIC GOLF COURSES",null,null,null,null,null,"INCLUDE"]
["7993","VIDEO AMUSEMENT GAME SUPPLY",null,null,null,null,null,"INCLUDE"]
["7994","VIDEO GAME ARCADES/ESTABLIS",null,null,null,null,null,"INCLUDE"]
["7996","AMUSEMENT PARKS/CIRCUS",null,null,null,null,null,"INCLUDE"]
["7997","MEMBER CLUBS/SPORT/REC/GOLF",null,null,null,null,null,"INCLUDE"]
["7998","AQUARIUMS/REC SERV",null,null,null,null,null,"INCLUDE"]
["7999","AMUSEMENT/REC SERV",null,null,null,null,null,"INCLUDE"]
["9702","GCAS EMERGENCY SERVICES",null,null,null,null,null,"INCLUDE"]
["9753","CONSUMER ELECTRONICS/FURNITURE STORE",null,null,null,null,null,"INCLUDE"]
["9950","INTRA-COMPANY PURCHASES",null,null,null,null,null,"INCLUDE"]
["CAR RENTAL"]
["3302-3500","CAR RENTAL (See Air, Car Rental & Hotel List)",null,"INCLUDE"]
["4457","BOAT RENTALS & LEASES"]
["7512","AUTO RENTAL ",null,"INCLUDE",null,"INCLUDE"]
["7513","TRUCK/TRAILER RENTALS",null,"INCLUDE",null,"INCLUDE",null,"INCLUDE"]
["7519","MOTOR HOME/RV RENTALS",null,null,null,null,null,"INCLUDE"]
["CASH ADVANCE"]
["6010","MEMBER-MANUAL CASH DISBURSEMENT"]
["6011","MEMBER-AUTOMATED CASH DISBURSEMENT"]
["6012","MEMBER-MERCHANDISE AND SERVICES"]
["6050","QUASI CASH - MEMBER"]
["6051","QUASI CASH-MERCHANT"]
["CLOTHING STORES"]
["5611","MEN/BOYS CLOTHING/ACC STORE",null,"INCLUDE",null,"INCLUDE",null,"INCLUDE"]
["5621","WOMENS READY TO WEAR STORES",null,"INCLUDE",null,"INCLUDE",null,"INCLUDE"]
["5631","WOMENS ACCESS/SPECIALTY",null,"INCLUDE",null,"INCLUDE",null,"INCLUDE"]
["5641","CHILDREN/INFANTS WEAR STORE",null,null,null,null,null,"INCLUDE"]
["5651","FAMILY CLOTHING STORES",null,"INCLUDE",null,"INCLUDE",null,"INCLUDE"]
["5655","SPORTS/RIDING APPAREL STORE",null,"INCLUDE",null,"INCLUDE",null,"INCLUDE"]
["5661","SHOE STORES",null,null,null,null,null,"INCLUDE"]
["5681","FURRIERS AND FUR SHOPS"]
["5691","MENS/WOMENS CLOTHING STORES",null,"INCLUDE",null,"INCLUDE",null,"INCLUDE"]
["5697","TAILOR/SEAMSTRESS/ALTERATIONS",null,null,null,null,null,"INCLUDE"]
["5698","WIG AND TOUPEE STORES",null,null,null,null,null,"INCLUDE"]
["5699","MISC APPAREL/ACCESS SHOPS",null,"INCLUDE",null,"INCLUDE",null,"INCLUDE"]
["CONTRACTED SERVICES"]
["1520","GEN CONTRACTORS RESIDENTIAL",null,null,null,null,null,"INCLUDE"]
["1711","HEATING, PLUMBING, AIR COND",null,null,null,null,null,"INCLUDE"]
["1731","ELECTRICAL CONTRACTORS",null,null,null,null,null,"INCLUDE"]
["1740","MASONRY/TILE/PLASTER/INSUL",null,null,null,null,null,"INCLUDE"]
["1750","CARPENTRY",null,null,null,null,null,"INCLUDE"]
["1761","ROOFING/SIDING/SHEET METAL",null,null,null,null,null,"INCLUDE"]
["1771","CONTRACTORS - CONCRETE",null,null,null,null,null,"INCLUDE"]
["1799","SPEC CONTRACTORS",null,null,null,null,null,"INCLUDE"]
["2741","MISC PUBLISH AND PRINT",null,null,null,null,null,"INCLUDE"]
["2791","TYPESETTING, PLATE MAKING",null,null,null,null,null,"INCLUDE"]
["2842","SPECIALTY CLEANING SANITATION",null,null,null,null,null,"INCLUDE"]
["FINANCIAL SERVICES"]
["6211","SECURITIES BROKERS/DEALERS",null,null,null,null,null,"INCLUDE"]
["6300","INSURANCE SALES, UNDERWRITING, AND PREMIUMS",null,"INCLUDE",null,"INCLUDE",null,"INCLUDE"]
["6381","INSURANCE PREMIUMS",null,null,null,null,null,"INCLUDE"]
["6399","INSURANCE CARRIERS NOT ELSEWHERE CLASSIFIED",null,null,null,null,null,"INCLUDE"]
["6529","REMOTE STORED VALUE LOAD - MEMBER FIN INSTITUTION"]
["6530","REMOTE STORED VALUE LOAD - MERCHANT"]
["6531","PAYMENT SERVICE PROVIDER"]
["6532","PSP-MEMBER-PAYMENT TRANSACTION"]
["6533","PSP-MERCHANT-PAYMENT TRANSACTION"]
["6534","MONEY TRANSFER-MEMBER"]
["6535","VALUE PURCHASE-MEMBER FINANCIAL INSTITUTIONS"]
["6536","MONEYSEND - INTRACOUNTRY                          ",null,null,null,null,null,"INCLUDE"]
["6537","MONEYSEND - INTERCOUNTRY                          ",null,null,null,null,null,"INCLUDE"]
["6538","MONEYSEND FUNDING",null,null,null,null,null,"INCLUDE"]
["6540","POI FUNDING TXN",null,null,null,null,null,"INCLUDE"]
["6555","MASTERCARD INITIATED REBATE/REWARD                ",null,null,null,null,null,"INCLUDE"]
["FUEL & SERVICE STATIONS"]
["5541","SERVICE STATIONS",null,"INCLUDE",null,"INCLUDE",null,"INCLUDE"]
["5542","AUTOMATED GAS DISPENSERS",null,"INCLUDE",null,"INCLUDE",null,"INCLUDE"]
["5983","FUEL DEALERS - OIL, WOOD, COAL",null,"INCLUDE",null,"INCLUDE",null,"INCLUDE"]
["9752","GAS/AUTOMOTIVE/U.K. PETROL STATIONS-ELECTRONIC HOT FILE",null,"INCLUDE",null,"INCLUDE",null,"INCLUDE"]
["GOVERNMENT SERVICES"]
["9211","COURT COSTS/ALIMONY/SUPPORT",null,null,null,null,null,"INCLUDE"]
["9222","FINES",null,"INCLUDE",null,"INCLUDE"]
["9223","BAIL AND BOND PAYMENTS"]
["9311","TAX PAYMENTS"]
["9399","GOV'T SERVICES",null,"INCLUDE",null,"INCLUDE",null,"INCLUDE"]
["9401","I-PURCHASING PILOT"]
["9402","POSTAGE STAMPS",null,null,null,null,null,"INCLUDE"]
["9405","INTRA-GOVERNMENT PURCHASES--GOVERNMENT ONLY",null,null,null,null,null,"INCLUDE"]
["HIGH RISK INDUSTRIES"]
["4829","WIRE TRANSFER - MONEY ORDER - ALWAYS EXCLUDED"]
["7273","DATING & ESCORT SERVICES - ALWAYS EXCLUDED"]
["7297","MASSAGE PARLORS - ALWAYS EXCLUDED"]
["7800","GOVERNMENT OWNED LOTTERY - ALWAYS EXCLUDED"]
["7801","INTERNET GAMBLING - ALWAYS EXCLUDED"]
["7802","GOVERNMENT LICENSED HORSE/DOG RACING - ALWAYS EXCLUDED"]
["7995","GAMBLING TRANSACTIONS - ALWAYS EXCLUDED"]
["9754","GAMBLING-HORSE RACING, DOG RACING, LOTTERIES - ALWAYS EXCLUDED"]
["9406","GOVERNMENT OWNED LOTTERY - SPECIFIC CTRY"]
["HOTELS, LODGING, ETC."]
["3501-4000","HOTELS (See Air, Car Rental & Hotel List)",null,"INCLUDE",null,"INCLUDE"]
["7011","HOTELS ",null,"INCLUDE",null,"INCLUDE"]
["7012","TIMESHARES",null,"INCLUDE",null,"INCLUDE"]
["7032","SPORT/RECREATIONAL CAMPS",null,null,null,null,null,"INCLUDE"]
["7033","TRAILER PARKS/CAMP SITES",null,"INCLUDE",null,"INCLUDE",null,"INCLUDE"]
["7210","LAUNDRY/CLEANING/GARMENT SV",null,null,null,null,null,"INCLUDE"]
["7211","LAUNDRIES-FAMILY/COMMERCIAL",null,null,null,null,null,"INCLUDE"]
["7216","DRY CLEANERS",null,null,null,null,null,"INCLUDE"]
["MISCELLANEOUS STORES"]
["5712","FURNITURE/EQUIP STORES",null,null,null,null,null,"INCLUDE"]
["5713","FLOOR COVERING STORES",null,null,null,null,null,"INCLUDE"]
["5714","DRAPERY & UPHOLSTERY STORES",null,null,null,null,null,"INCLUDE"]
["5718","FIREPLACES & ACCESSORIES",null,null,null,null,null,"INCLUDE"]
["5719","MISC HOME FURNISHING",null,null,null,null,null,"INCLUDE"]
["5722","HOUSEHOLD APPLIANCE STORES",null,null,null,null,null,"INCLUDE"]
["5732","RADIO TV & STEREO STORES",null,null,null,null,null,"INCLUDE"]
["5733","MUSIC STORES/PIANOS",null,null,null,null,null,"INCLUDE"]
["5734","COMPUTER SOFTWARE/RECORD STORES",null,null,null,null,null,"INCLUDE"]
["5735","RECORD SHOPS",null,null,null,null,null,"INCLUDE"]
["5811","CATERERS",null,"INCLUDE",null,"INCLUDE",null,"INCLUDE"]
["5815","AUDIOVISUAL MEDIA INCLUDING BOOKS, MOVIES, AND MUSIC",null,null,null,null,null,"INCLUDE"]
["5816","GAMES",null,null,null,null,null,"INCLUDE"]
["5817","SOFTWARE APPLCIATIONS (EXCLUDING GAMES)",null,null,null,null,null,"INCLUDE"]
["5818","MULTI-CATEGORY",null,null,null,null,null,"INCLUDE"]
["5912","DRUG STORES & PHARMACIES",null,"INCLUDE",null,"INCLUDE",null,"INCLUDE"]
["5921","PKG STORES/BEER/WINE/LIQUOR"]
["5931","USED MERCHANDISE STORES",null,null,null,null,null,"INCLUDE"]
["5932","ANTIQUE SHOPS",null,null,null,null,null,"INCLUDE"]
["5933","PAWN SHOPS"]
["5935","WRECKING SALVAGE YARDS",null,null,null,null,null,"INCLUDE"]
["5937","ANTIQUE REPRODUCTIONS",null,null,null,null,null,"INCLUDE"]
["5940","BICYCLE SHOPS/SALES/SERVICE",null,null,null,null,null,"INCLUDE"]
["5941","SPORTING GOODS STORES",null,"INCLUDE",null,"INCLUDE",null,"INCLUDE"]
["5942","BOOK STORES",null,"INCLUDE",null,"INCLUDE",null,"INCLUDE"]
["5943","STATIONERY STORES",null,"INCLUDE",null,"INCLUDE",null,"INCLUDE"]
["5944","JEWELRY STORES"]
["5945","HOBBY, TOY & GAME SHOPS",null,null,null,null,null,"INCLUDE"]
["5946","CAMERA & PHOTO SUPPLY STORE",null,null,null,null,null,"INCLUDE"]
["5947","GIFT, CARD, NOVELTY STORES",null,"INCLUDE",null,"INCLUDE",null,"INCLUDE"]
["5948","LUGGAGE/LEATHER STORES",null,null,null,null,null,"INCLUDE"]
["5949","FABRIC STORES",null,null,null,null,null,"INCLUDE"]
["5950","GLASSWARE/CRYSTAL STORES",null,null,null,null,null,"INCLUDE"]
["5960","DIRECT MARKET INSURANCE",null,null,null,null,null,"INCLUDE"]
["5962","TELEMARKETING TRAVEL-RELATED",null,"INCLUDE",null,"INCLUDE",null,"INCLUDE"]
["5963","DIRECT SELL/DOOR-TO-DOOR",null,null,null,null,null,"INCLUDE"]
["5964","CATALOG MERCHANT",null,null,null,null,null,"INCLUDE"]
["5965","COMBINATION  MAIL/RETAIL",null,null,null,null,null,"INCLUDE"]
["5966","OUTBOUND TELEMARKETING",null,"INCLUDE",null,"INCLUDE",null,"INCLUDE"]
["5967","INBOUND TELESERVICES",null,null,null,null,null,"INCLUDE"]
["5968","SUBSCRIPTION MERCHANT",null,null,null,null,null,"INCLUDE"]
["5969","OTHER DIRECT MARKETERS",null,"INCLUDE",null,"INCLUDE",null,"INCLUDE"]
["5970","ARTIST/CRAFT STORES",null,null,null,null,null,"INCLUDE"]
["5971","ART DEALERS & GALLERIES",null,null,null,null,null,"INCLUDE"]
["5972","STAMP & COIN STORES",null,null,null,null,null,"INCLUDE"]
["5973","RELIGIOUS GOODS STORES",null,null,null,null,null,"INCLUDE"]
["5975","HEARING AID/SALES/SERVICE",null,null,null,null,null,"INCLUDE"]
["5976","ORTHOPEDIC GOODS",null,null,null,null,null,"INCLUDE"]
["5977","COSMETIC STORES",null,null,null,null,null,"INCLUDE"]
["5978","TYPEWRITER/SALES/SERVICE",null,null,null,null,null,"INCLUDE"]
["5992","FLORISTS",null,null,null,null,null,"INCLUDE"]
["5993","CIGAR STORES/STANDS",null,null,null,null,null,"INCLUDE"]
["5994","NEWS DEALERS/NEWSTANDS",null,"INCLUDE",null,"INCLUDE",null,"INCLUDE"]
["5995","PET STORES/FOOD & SUPPLY",null,null,null,null,null,"INCLUDE"]
["5996","SWIMMING POOLS/SALES/SERV",null,null,null,null,null,"INCLUDE"]
["5997","ELEC RAZOR STORES/SALE/SERV",null,null,null,null,null,"INCLUDE"]
["5998","TENT AND AWNING SHOPS",null,null,null,null,null,"INCLUDE"]
["5999","MISC SPECIALITY RETAIL",null,"INCLUDE",null,"INCLUDE",null,"INCLUDE"]
["6513","REAL ESTATE AGENTS AND MANAGERS-RENTALS",null,"INCLUDE",null,"INCLUDE",null,"INCLUDE"]
["7217","CARPET/UPHOLSTERY CLEANING",null,null,null,null,null,"INCLUDE"]
["7221","PHOTO STUDIOS - PORTRAITS",null,null,null,null,null,"INCLUDE"]
["7230","BARBER/BEAUTY SHOPS",null,null,null,null,null,"INCLUDE"]
["7251","SHOE REPAIR/SHINE/HAT CLEAN",null,null,null,null,null,"INCLUDE"]
["7261","FUNERAL SERVICE/CREMATORIES",null,null,null,null,null,"INCLUDE"]
["7276","TAX PREPARATION SERVICE"]
["7277","COUNSELING SERVICE - ALL",null,null,null,null,null,"INCLUDE"]
["7278","BUYING/SHOPPING SERVICES",null,null,null,null,null,"INCLUDE"]
["7296","CLOTHING/RENT/COSTUME/UNIFO",null,null,null,null,null,"INCLUDE"]
["7298","HEALTH & BEAUTY SPAS"]
["7299","MISC PERSONAL SERV",null,"INCLUDE",null,"INCLUDE",null,"INCLUDE"]
["PROFESSIONAL SERVICES & MEMBERSHIP ORGRANIZATIONS"]
["8011","DOCTORS",null,null,null,null,null,"INCLUDE"]
["8021","DENTISTS/ORTHODONTIST",null,null,null,null,null,"INCLUDE"]
["8031","OSTEOPATHS",null,null,null,null,null,"INCLUDE"]
["8041","CHIROPRACTORS",null,null,null,null,null,"INCLUDE"]
["8042","OPTOMETRISTS/OPTHALMOLOGIST",null,null,null,null,null,"INCLUDE"]
["8043","OPTICIANS",null,null,null,null,null,"INCLUDE"]
["8044","OPTICAL GOODS & GLASSES",null,null,null,null,null,"INCLUDE"]
["8049","CHIROPODISTS PODIATRISTS",null,null,null,null,null,"INCLUDE"]
["8050","NURSING/PERSONAL CARE FAC",null,null,null,null,null,"INCLUDE"]
["8062","HOSPITALS",null,"INCLUDE",null,"INCLUDE",null,"INCLUDE"]
["8071","MEDICAL/DENTAL LABS",null,null,null,null,null,"INCLUDE"]
["8099","MED/HEALTH SERVICES",null,null,null,null,null,"INCLUDE"]
["8111","LEGAL SERVICES ATTORNEYS",null,"INCLUDE",null,"INCLUDE",null,"INCLUDE"]
["8211","ELEMENTARY/SECONDARY SCHOOL",null,null,null,null,null,"INCLUDE"]
["8220","COLLEGES/UNIV/JC/PROFESSION",null,"INCLUDE",null,"INCLUDE",null,"INCLUDE"]
["8241","CORRESPONDENCE SCHOOLS",null,null,null,null,null,"INCLUDE"]
["8244","BUSINESS/SECRETARIAL SCHOOL",null,"INCLUDE",null,"INCLUDE",null,"INCLUDE"]
["8249","VOCATIONAL/TRADE SCHOOLS",null,"INCLUDE",null,"INCLUDE",null,"INCLUDE"]
["8299","SCHOOLS - DEFAULT",null,"INCLUDE",null,"INCLUDE",null,"INCLUDE"]
["8351","CHILD DAY CARE SERVICES"]
["8398","CHARITABLE/SOC SERVICE ORGS",null,"INCLUDE",null,"INCLUDE",null,"INCLUDE"]
["8641","CIVIC/SOCIAL/FRATERNAL ASSC",null,"INCLUDE",null,"INCLUDE",null,"INCLUDE"]
["8651","POLITICAL ORGANIZATIONS",null,null,null,null,null,"INCLUDE"]
["8661","RELIGIOUS ORGANIZATIONS",null,"INCLUDE",null,"INCLUDE",null,"INCLUDE"]
["8675","AUTO ASSOCIATIONS",null,"INCLUDE",null,"INCLUDE",null,"INCLUDE"]
["8699","MEMBER ORGANIZATIONS",null,"INCLUDE",null,"INCLUDE",null,"INCLUDE"]
["8734","TESTING LABS (NON-MEDICAL)",null,null,null,null,null,"INCLUDE"]
["8743","TESTING LABORATORIES (NON-MEDICAL) ",null,null,null,null,null,"INCLUDE"]
["8911","ARCHITECTURAL/ENG/SURVEY",null,"INCLUDE",null,"INCLUDE",null,"INCLUDE"]
["8931","ACCOUNTANTS/AUDITORS/BOOKPR",null,null,null,null,null,"INCLUDE"]
["8999","PROFESSIONAL SERVICES",null,"INCLUDE",null,"INCLUDE",null,"INCLUDE"]
["9700","AUTOMATED REFERRAL SERVICE"]
["9701","VISA CREDENTIAL SERVER",null,null,null,null,null,"INCLUDE"]
["RESTAURANTS, DINING, ETC."]
["5812","RESTAURANTS",null,"INCLUDE",null,"INCLUDE",null,"INCLUDE"]
["5813","BARS/TAVERNS/LOUNGES/DISCOS",null,"INCLUDE",null,"INCLUDE",null,"INCLUDE"]
["5814","FAST FOOD RESTAURANTS",null,"INCLUDE",null,"INCLUDE",null,"INCLUDE"]
["RETAIL OUTLET SERVICES"]
["5013","MOTOR VEHICLE SUPPLIES",null,"INCLUDE",null,"INCLUDE",null,"INCLUDE"]
["5021","COMMERCIAL FURNITURE",null,null,null,null,null,"INCLUDE"]
["5039","CONSTRUCTION MATERIALS - OTHR",null,null,null,null,null,"INCLUDE"]
["5044","PHOTOGRAPH, PHOTOCOPY EQUIPT",null,null,null,null,null,"INCLUDE"]
["5045","COMPUTERS, PERIPHERALS",null,null,null,null,null,"INCLUDE"]
["5046","COMMERCIAL EQUIPMENT - OTHER",null,null,null,null,null,"INCLUDE"]
["5047","MEDICAL EQUIPMENT & SUPPLIES",null,null,null,null,null,"INCLUDE"]
["5051","METAL SERVICE CENTERS AND OFFICES",null,null,null,null,null,"INCLUDE"]
["5065","ELECTRICAL PARTS & EQUIPMENT",null,null,null,null,null,"INCLUDE"]
["5072","HARDWARE EQUIPMENT & SUPPLIES",null,null,null,null,null,"INCLUDE"]
["5074","PLUMBING & HEATING EQUIPMENT",null,null,null,null,null,"INCLUDE"]
["5085","INDUSTRIAL SUPPLIES - OTHER",null,null,null,null,null,"INCLUDE"]
["5094","PRECIOUS STONES & METALS",null,null,null,null,null,"INCLUDE"]
["5099","DURABLE GOODS - OTHER",null,null,null,null,null,"INCLUDE"]
["5111","STATIONERY, OFFICE SUPPLIES",null,null,null,null,null,"INCLUDE"]
["5122","DRUGS, DRUGGIST SUNDRIES",null,null,null,null,null,"INCLUDE"]
["5131","PIECE GOODS NOTIONS DRY GDS",null,null,null,null,null,"INCLUDE"]
["5137","COMMERCIAL CLOTHING",null,null,null,null,null,"INCLUDE"]
["5139","COMMERCIAL FOOTWEAR",null,null,null,null,null,"INCLUDE"]
["5169","CHEMICALS & ALLIED PDCTS OTHR",null,null,null,null,null,"INCLUDE"]
["5172","PETROLEUM PRODUCTS",null,"INCLUDE",null,"INCLUDE",null,"INCLUDE"]
["5192","BOOKS, PERIODICALS, NEWSPAPER",null,"INCLUDE",null,"INCLUDE",null,"INCLUDE"]
["5193","FLORIST & NURSERY SUPPLIES",null,null,null,null,null,"INCLUDE"]
["5198","PAINTS, VARNISHES & SUPPLIES",null,null,null,null,null,"INCLUDE"]
["5199","NONDURABLE GOODS - OTHER",null,"INCLUDE",null,"INCLUDE",null,"INCLUDE"]
["5200","HOME SUPPLY WAREHOUSE STORE",null,null,null,null,null,"INCLUDE"]
["5211","LUMBER/BUILD SUPPLY STORES",null,null,null,null,null,"INCLUDE"]
["5231","GLASS/PAINT/WALLPAPER STORE",null,null,null,null,null,"INCLUDE"]
["5251","HARDWARE STORES",null,null,null,null,null,"INCLUDE"]
["5261","LAWN/GARDEN SUPPLY/NURSERY",null,null,null,null,null,"INCLUDE"]
["5262","MARKETPLACES",null,null,null,null,null,"INCLUDE"]
["5271","MOBILE HOME DEALERS"]
["5300","WHOLESALE CLUBS",null,null,null,null,null,"INCLUDE"]
["5309","DUTY-FREE STORES"]
["5310","DISCOUNT STORES",null,"INCLUDE",null,"INCLUDE",null,"INCLUDE"]
["5311","DEPARTMENT STORES",null,"INCLUDE",null,"INCLUDE",null,"INCLUDE"]
["5331","VARIETY STORES",null,"INCLUDE",null,"INCLUDE",null,"INCLUDE"]
["5399","MISC GEN MERCHANDISE",null,"INCLUDE",null,"INCLUDE",null,"INCLUDE"]
["5411","GROCERY STORES",null,"INCLUDE",null,"INCLUDE",null,"INCLUDE"]
["5422","FREEZER/MEAT LOCKERS",null,null,null,null,null,"INCLUDE"]
["5441","CANDY/NUT/CONFECTION STORE",null,"INCLUDE",null,"INCLUDE",null,"INCLUDE"]
["5451","DAIRY PRODUCT STORES",null,"INCLUDE",null,"INCLUDE",null,"INCLUDE"]
["5462","BAKERIES",null,"INCLUDE",null,"INCLUDE",null,"INCLUDE"]
["5499","MISC FOOD STORES",null,"INCLUDE",null,"INCLUDE",null,"INCLUDE"]
["5511","AUTO DEALERS/NEW AND USED",null,"INCLUDE",null,"INCLUDE",null,"INCLUDE"]
["5521","AUTO DEALERS USED ONLY",null,null,null,null,null,"INCLUDE"]
["5531","AUTO/HOME SUPPLY STORES",null,"INCLUDE",null,"INCLUDE",null,"INCLUDE"]
["5532","AUTOMOTIVE TIRE STORES",null,"INCLUDE",null,"INCLUDE",null,"INCLUDE"]
["5533","AUTOMOTIVE PARTS STORES",null,"INCLUDE",null,"INCLUDE",null,"INCLUDE"]
["5551","BOAT DEALERS",null,null,null,null,null,"INCLUDE"]
["5552","ELECTRIC CAR CHARGING",null,"INCLUDE",null,"INCLUDE",null,"INCLUDE"]
["5561","TRAILER CAMPER DEALERS",null,null,null,null,null,"INCLUDE"]
["5571","MOTORCYCLE DEALERS",null,null,null,null,null,"INCLUDE"]
["5592","MOTOR HOME DEALERS",null,null,null,null,null,"INCLUDE"]
["5598","SNOWMOBILE DEALERS",null,null,null,null,null,"INCLUDE"]
["5599","MISC AUTO DEALERS",null,"INCLUDE",null,"INCLUDE",null,"INCLUDE"]
["9751","MERCHANDISE/U.K SUPERMARKETS",null,null,null,null,null,"INCLUDE"]
["TRANSPORTATION SERVICES"]
["4011","RAILROADS",null,"INCLUDE",null,"INCLUDE",null,"INCLUDE"]
["4111","LOCAL COMMUTER TRANSPORT",null,"INCLUDE",null,"INCLUDE",null,"INCLUDE"]
["4112","PASSENGER RAIL",null,"INCLUDE",null,"INCLUDE",null,"INCLUDE"]
["4119","AMBULANCE SERVICE",null,"INCLUDE",null,"INCLUDE",null,"INCLUDE"]
["4121","TAXICABS/LIMOUSINES",null,"INCLUDE",null,"INCLUDE",null,"INCLUDE"]
["4131","BUS LINES/CHARTER/TOUR",null,"INCLUDE",null,"INCLUDE",null,"INCLUDE"]
["4214","MOTOR FREIGHT CARRIERS",null,"INCLUDE",null,"INCLUDE",null,"INCLUDE"]
["4215","COURIER SERVICES",null,"INCLUDE",null,"INCLUDE",null,"INCLUDE"]
["4225","PUBLIC WAREHOUSING",null,null,null,null,null,"INCLUDE"]
["4411","STEAMSHIP/CRUISE LINES",null,"INCLUDE"]
["4468","MARINAS, SERVICE & SUPPLY",null,"INCLUDE",null,"INCLUDE",null,"INCLUDE"]
["4582","AIRPORTS/FIELDS/TERMINALS",null,"INCLUDE",null,"INCLUDE"]
["4784","TOLL AND BRIDGE FEES",null,"INCLUDE",null,"INCLUDE",null,"INCLUDE"]
["TRAVEL AGENCIES"]
["4722","TRAVEL AGENCIES",null,"INCLUDE",null,"INCLUDE",null,"INCLUDE"]
["4723","OTHER TRAVEL/PKG TOUR OPERATORS - GERMANY ONLY"]
["4761","TELEMARKETING OF TRAVEL RELATED SERVICES AND VITAMINS    "]
["4789","TRAVEL SERVICE",null,"INCLUDE",null,"INCLUDE",null,"INCLUDE"]
["UTILITY SERVICES"]
["4812","PHONE SERV/EQUIP NON-UTIL",null,null,null,null,null,"INCLUDE"]
["4813","KEY-ENTERED TELECOM MERCHANT  ",null,null,null,null,null,"INCLUDE"]
["4814","PHONE SERV/EQUIP UTILITY",null,null,null,null,null,"INCLUDE"]
["4815","Visa Phone",null,null,null,null,null,"INCLUDE"]
["4816","ELECTRONIC COMMERCE / INFO",null,null,null,null,null,"INCLUDE"]
["4821","TELEGRAPH SERVICES",null,null,null,null,null,"INCLUDE"]
["4899","CABLE TV SERVICES",null,null,null,null,null,"INCLUDE"]
["4900","UTILITIES/ELEC/GAS/H2O/SANITATION",null,null,null,null,null,"INCLUDE"]

{"sheet":"Air, Car Rental & Hotel List","index":1,"n_rows":607,"n_cols":2,"rows_kept":607,"cut":false,"hidden":false,"merged":[[270,0,270,1],[1,0,1,1],[216,0,216,1]]}
["MERCHANT CATEGORY CODE\n(MCC)","MCC DESCRIPTION"]
["Airlines"]
["3000","United Airlines\u0097UNITED"]
["3001","American Airlines\u0097AMERICAN"]
["3002","Pan American\u0097PAN AM"]
["3003","EUROFLY AIRLINES"]
["3004","DRAGONAIR"]
["3005","British Airways\u0097BRITISH A"]
["3006","Japan Air Lines\u0097JAL"]
["3007","Air France\u0097AIR FRAN"]
["3008","Lufthansa\u0097LUFTHAN"]
["3009","Air Canada\u0097AIR CAN"]
["3010","Royal Dutch Airlines (KLM)\u0097KLM"]
["3011","Aeroflot\u0097AEROFLOT"]
["3012","Qantas\u0097QANTAS"]
["3013","Alitalia\u0097ALITALIA"]
["3014","Saudi Arabian Airlines\u0097SAUDI AI"]
["3015","Swiss International Air Lines\u0097SWISS AIR"]
["3016","Scandinavian Airline System (SAS)\u0097SAS"]
["3017","South African Airways\u0097SAFRICAN"]
["3018","Varig (Brazil)\u0097VARIG"]
["3019","GRMNWGAIR"]
["3020","Air India\u0097AIR-INDI"]
["3021","Air Algerie\u0097AIRALGER"]
["3022","Philippine Airlines\u0097PHILIPP"]
["3023","Mexicana\u0097MEXICANA"]
["3024","Pakistan International\u0097PAKISTAN"]
["3025","Air New Zealand Limited International\u0097AIR NZ"]
["3026","Emirates Airlines\u0097EMIRATES"]
["3027","Union de Transports Aeriens\u0097UTAAIR"]
["3028","Air Malta\u0097AIRMALTA"]
["3029","SN Brussels Airlines\u0097SNBR AIR"]
["3030","Aerolineas Argentinas\u0097AERO ARG"]
["3031","Olympic Airways\u0097OLYMPICA"]
["3032","El Al\u0097EL AL"]
["3033","Ansett Airlines\u0097ANSETT"]
["3034","Trans Australian Airways-TAA"]
["3035","Tap (Portugal)\u0097TAP"]
["3036","VASP (Brazil)\u0097VASP"]
["3037","EgyptAir\u0097EGYPTAIR"]
["3038","Kuwait Airways\u0097KUWAIT"]
["3039","Avianca\u0097AVIANCA"]
["3040","Gulf Air (Bahrain)\u0097GULF AIR"]
["3041","Balkan\u0097Bulgarian Airlines\u0097BALKAN"]
["3042","Finnair\u0097FINNAIR"]
["3043","Aer Lingus\u0097AERLING"]
["3044","Air Lanka\u0097AIR LANKA"]
["3045","Nigeria Airways\u0097NIGERIA"]
["3046","Cruzerio do Sul (Brazil)\u0097CRUZERIO"]
["3047","THY (Turkey)\u0097THY"]
["3048","Royal Air Maroc\u0097AIRMARO"]
["3049","Tunis Air\u0097TUNIS AI"]
["3050","Icelandair\u0097ICELANDA"]
["3051","Austrian Airlines\u0097AUSTRIAN"]
["3052","LAN Airlines---LAN AIR"]
["3053","AVIACO (Spain)\u0097AVIACO"]
["3054","LADECO (Chile)\u0097LADECO"]
["3055","LAB (Bolivia)\u0097LAB"]
["3056","QUEBECAIRE"]
["3057","EAST/WEST AIRLINES (AUSTRALIA)"]
["3058","Delta\u0097DELTA"]
["3059","DBA LUFTFAHRTGESELLSCHAFT MBH - DBA Air"]
["3060","Northwest Airlines\u0097NWA AIR"]
["3061","Continental\u0097CONTINEN"]
["3062","HAPAG-LLOYD EXPRESS - HLX Air"]
["3063","U.S. Airways\u0097USAIRWYS"]
["3064","Adria Airways\u0097ADRIA AIR"]
["3065","Air Inter\u0097AIRINTER"]
["3066","Southwest Airlines\u0097SOUTHWES"]
["3067","Vanguard Airlines\u0097VANGUARD"]
["3068","Air Astana---AIRSTANA"]
["3069","SUNCTRYAIR"]
["3071","Air British Columbia\u0097AIR B R C"]
["3072","CEBU Pacific Airlines "]
["3075","Singapore Airlines\u0097SINGAPOR"]
["3076","Aeromexico\u0097AEROMEXI"]
["3077","Thai Airways\u0097THAIAIRW"]
["3078","China Airlines\u0097CHINAAIR"]
["3079","Jetstar Airways\u0097JETSTAR"]
["3081","NORDAIR"]
["3082","Korean Airlines\u0097KOREAN"]
["3083","Air Afrique\u0097AIR AFRIQ"]
["3084","Eva Airways\u0097EVA AIR"]
["3085","Midwest Express Airlines\u0097MIDWEST"]
["3086","Carnival Airlines"]
["3087","Metro Airlines\u0097METROAI"]
["3088","Croatia Air\u0097CROATIA"]
["3089","Transaero\u0097TRANSAERO"]
["3090","Uni Airways\u0097UNIAIR"]
["3092","Midway Airlines"]
["3094","Zambia Airways\u0097ZAMBIA A"]
["3096","Air Zimbabwe\u0097AIRZIMBA"]
["3097","Spanair\u0097SPANAIR"]
["3098","Asiana Airlines\u0097ASIANA"]
["3099","Cathay Pacific\u0097CATHAYPA"]
["3100","Malaysian Airline System\u0097MALAY AI"]
["3102","Iberia\u0097IBERIA"]
["3103","Garuda (Indonesia)\u0097GARUDA"]
["3106","Braathens S.A.F.E. (Norway)\u0097BRAATHEN"]
["3110","WINGS AIRWAYS"]
["3111","British Midland\u0097BRITISH M"]
["3112","Windward Island\u0097WINDWARD"]
["3115","TOWER AIR"]
["3117","Venezolana International de Aviacion\u0097VIASA"]
["3118","VALLEY AIRLINES"]
["3125","Tan Airlines\u0097TAN AIR"]
["3126","Talair PTY Ltd."]
["3127","Taca International\u0097TACA INT"]
["3129","Surinam Airways\u0097SURINAM"]
["3130","Sunworld International Airways\u0097SUNWORLD"]
["3131","VLM Airlines\u0097VLM"]
["3132","Frontier Airlines\u0097FRONTIER"]
["3133","SUNBELT AIRLINES"]
["3135","Sudan Airways\u0097SUDANAIR"]
["3136","Qatar Airways Company W.L.L.\u0097QATAR AIR"]
["3137","SINGLETON"]
["3138","SIMMONS AIRLINES"]
["3143","SCENIC AIRLINES"]
["3144","Virgin Atlantic\u0097VIR ATL"]
["3145","SAN JUAN AIRLINES"]
["3146","Luxair\u0097LUXAIR"]
["3148","Air Littoral, S.A.\u0097LITTORAL"]
["3151","Air Zaire\u0097AIRZAIRE"]
["3154","PRINCEVILLE"]
["3156","GO FLY Ltd.\u0097GOFLY"]
["3159","Provincetown-Boston Airways\u0097PBA"]
["3161","All Nippon Airways\u0097ANAAIR"]
["3164","Norontair\u0097NORONTAI"]
["3165","NEW YORK HELICOPTER - NY HELI"]
["3167","Aero Continente\u0097AERO CONT"]
["3170","MOUNT COOK - MT COOK AIR"]
["3171","Canadian Airlines\u0097CANADIAN"]
["3172","Nation Air\u0097NATIONAI"]
["3174","JetBlue Airways\u0097JETBLUE"]
["3175","Middle East Air\u0097MIDEASTA"]
["3176","METROFLIGHT AIRLINES - METROFLT AIR"]
["3177","AirTran Airways\u0097AIRTRAN A"]
["3178","Mesa Air\u0097MESA AIR"]
["3180","Westjet Airlines\u0097WESTJET"]
["3181","Malev Hungarian Airlines\u0097MALEV"]
["3182","LOT-Polish Airlines\u0097LOT"]
["3183","Oman Aviation Services\u0097OMAN AIR"]
["3184","LIAT\u0097LIAT"]
["3185","LAV Linea Aeropostal Venezolana\u0097LAV"]
["3186","LAP Lineas Aereas Paraguayas\u0097LAP"]
["3187","LACSA (Costa Rica)\u0097LACSA"]
["3188","Virgin Express\u0097VIR EXP"]
["3190","Jugoslav Air\u0097JUGOSLAV"]
["3191","Island Airlines\u0097ISLANDAI"]
["3192","Iran National"]
["3193","Indian Airlines\u0097INDIAN A"]
["3196","Hawaiian Air\u0097HAWAIIAN"]
["3197","Havasu Airlines\u0097HAVASUAI"]
["3200","Guyana Airways\u0097GUYANA A"]
["3203","GOLDEN PACIFIC AIR - GOLDPAC AIR"]
["3204","Freedom Airlines\u0097FREEDOM"]
["3206","China Eastern Airlines\u0097CHINAEAST"]
["3211","Norwegian Air Shuttle\u0097NORWEGIAN"]
["3212","Dominicana de Aviacion\u0097DOMINICA"]
["3213","Malmo Aviation\u0097MALMO AV"]
["3215","DAN AIR SERVICES - DANAIRSERV"]
["3216","CUMBERLAND AIRLINES - CUMBERLNDAIR"]
["3217","CSA Ceskoslovenske Aerolinie\u0097CSA"]
["3218","CROWN AIR"]
["3219","Compania Panamena de Aviacion (Copa)\u0097COPA"]
["3220","Compania Faucett\u0097COMPANIA"]
["3221","Transportes Aeros Militares Ecuatorianos\u0097TAME AIR"]
["3222","Command Airways\u0097COMMAND"]
["3223","Comair\u0097COMAIR"]
["3226","Skyways\u0097SKYWAYS"]
["3228","Cayman Airways\u0097CAYMANAI"]
["3229","SAETA (Sociedad Ecuatorianas De Transportes Aereo)\u0097SAETAAIR"]
["3231","SAHSA (Servicio Aero de Honduras)\u0097SAHSA"]
["3233","CAPITOL AIR"]
["3234","CARIBBEAN AIRLINES|CARIBBEANAIR"]
["3235","BROCKWAY AIR"]
["3236","Air Arabia Airline\u0097AIR ARAB"]
["3238","BEMIDJI AIRLINES"]
["3239","Bar Harbor Airlines\u0097BARHARBO"]
["3240","Bahamasair\u0097BAHAMASA"]
["3241","Aviateca (Guatemala)\u0097AVIATECA"]
["3242","Avensa\u0097AVENSA"]
["3243","Austrian Air Service\u0097AUSTRAIR"]
["3245","EasyJet\u0097EASYJET"]
["3246","Ryanair\u0097RYANAIR"]
["3247","Gol Airlines\u0097GOL"]
["3248","Tam Airlines\u0097TAM"]
["3251","Aloha Airlines\u0097ALOH AI"]
["3252","ALM Antilean Airlines\u0097ALM"]
["3253","America West"]
["3254","U.S. AIR SHUTTLE"]
["3256","Alaska Airlines Inc.\u0097ALASKA A"]
["3259","American Trans Air\u0097ATA AIR"]
["3260","Spirit Airlines\u0097SPIRIT"]
["3261","Air China\u0097AIR CHINA"]
["3262","RENO AIR, INC. - RENO AIR"]
["3263","Aero Servicio Carabobo\u0097ASERCA"]
["3265","Airspur Helicopters"]
["3266","Air Seychelles\u0097AIR SEYC"]
["3267","Air Panama International\u0097AIR PANA"]
["3280","Air Jamaica\u0097AIR JAMA"]
["3282","Air Djibouti\u0097AIR DJIB"]
["3284","AERO VIRGIN ISLANDS - AERVIRGINIS"]
["3285","Aero Peru\u0097AEROPERU"]
["3286","Aero. Nicaraguenses\u0097AERO NIC"]
["3287","Aero Coach Aviation\u0097AEROCOAC"]
["3292","Cyprus Airways\u0097CYPRUSA"]
["3293","Ecuatoriana\u0097ECUATORI"]
["3294","Ethiopian Airlines\u0097ETHIOPIA"]
["3295","Kenya Airways\u0097KENYAAIR"]
["3296","Air Berlin (AIRBERLIN)"]
["3297","Tarom Romanian Air Transport\u0097TAROM AIR"]
["3298","Air Mauritius\u0097AIRMAURI"]
["3299","Wideroes Flyveselskap\u0097WIDEROES"]
["3300","Azul Air"]
["3301","Wizz Air"]
["Car Rental"]
[3351,"Affiliated Auto Rental"]
["3352","American International"]
["3353","Brooks Rent A Car"]
["3354","Action Auto Rental"]
["3355","SIXT Car Rental"]
["3357","Hertz"]
["3359","Payless Car Rental"]
["3360","Snappy Car Rental"]
["3361","Airways Rent-A-Car"]
["3362","Altra Auto Rental"]
["3364","Agency Rent-A-Car"]
["3366","Budget Rent-A-Car"]
["3368","Holiday Rent-A-Car"]
["3370","Rent A Wreck"]
["3374","Accent Rent-A-Car"]
["3376","Ajax Rent-A-Car"]
["3380","Triangle Rent A Car"]
["3381","Europ Car"]
["3385","Tropical Rent-A-Car"]
["3386","Showcase Rental Cars"]
["3387","Alamo Rent-A-Car"]
["3388","Merchants Rent-A-Car"]
["3389","Avis Rent A Car"]
["3390","Dollar Rent A Car"]
["3391","Europe By Car"]
["3393","National Car Rental"]
["3394","Kemwell Group Rent-A-Car"]
["3395","Thrifty Car Rental"]
["3396","Tilden Rent-A-Car"]
["3398","Econo Car Rent-A-Car"]
["3400","Auto Host Car Rental"]
["3405","Enterprise Rent-A-Car"]
["3409","General Rent-A-Car"]
["3412","A1 Rent-A-Car"]
["3414","GODFREY NATL RENT-A-CAR"]
["3420","ANSA International"]
["3421","Allstate Rent-A-Car"]
["3423","Avcar Rent-A-Car"]
["3425","Automate Rent-A-Car"]
["3427","Avon Rent-A-Car"]
["3428","Carey Rent-A-Car"]
["3429","Insurance Rent-A-Car"]
["3430","Major Rent-A-Car"]
["3431","Replacement Rent-A-Car"]
["3432","Reserve Rent-A-Car"]
["3433","Ugly Duckling Rent-A-Car"]
["3434","USA Rent-A-Car"]
["3435","Value Rent-A-Car"]
["3436","Autohansa Rent-A-Car"]
["3437","CITE RENT -A-CAR"]
["3438","Interent Rent-A-Car"]
["3439","Milleville Rent-A-Car"]
["3441","Advantage Rent A Car"]
["Hotels"]
["3501","Holiday Inns"]
["3502","Best Western Hotels"]
["3503","Sheraton"]
["3504","Hilton Hotels"]
["3505","Forte Hotels"]
["3506","Golden Tulip Hotels"]
["3507","Friendship Inns"]
["3508","Quality Inns"]
["3509","Marriott"]
["3510","Days Inns"]
["3511","Arabella Hotels"]
["3512","Intercontinental Hotels"]
["3513","Westin"]
["3514","Amerisuites"]
["3515","Rodeway Inns"]
["3516","LaQuinta Inns"]
["3517","Americana Hotels"]
["3518","Sol Hotels"]
["3519","Pullman International Hotels"]
["3520","Meridien Hotels"]
["3521","Royal Lahaina Resort"]
["3522","Tokyo Hotel"]
["3523","Peninsula Hotels"]
["3524","WelcomGroup Hotels"]
["3525","Dunfey Hotels"]
["3526","Prince Hotels"]
["3527","Downtowner Passport"]
["3528","Red Lion Inns"]
["3529","CP (Canadian Pacific) Hotels"]
["3530","Renaissance Hotels"]
["3531","Kauai Coconut Beach Resort"]
["3532","Royal Kona Resort"]
["3533","Hotel Ibis"]
["3534","Southern Pacific Hotel"]
["3535","Hilton International"]
["3536","AMFAC Hotels"]
["3537","ANA Hotels"]
["3538","Concorde Hotels"]
["3539","Summerfield Suites Hotel"]
["3540","Iberotel Hotels"]
["3541","Hotel Okura"]
["3542","Royal Hotels"]
["3543","Four Seasons Hotels"]
["3544","Ciga Hotels"]
["3545","Shangri-La International"]
["3546","Sierra Suites Hotel"]
["3547","Breakers Resort"]
["3548","Hotels Melia"]
["3549","Auberge des Governeures"]
["3550","Regal 8 Inns"]
["3551","Mirage Hotel and Casino"]
["3552","Coast Hotel"]
["3553","Park Inns International"]
["3554","Pinehurst Resort"]
["3555","Treasure Island Hotel and Casino"]
["3556","Barton Creek Resort"]
["3557","Manhattan East Suite Hotels"]
["3558","Jolly Hotels"]
["3559","CANDLEWOOD SUITES"]
["3560","Aladdin Resort and Casino"]
["3561","Golden Nugget"]
["3562","Comfort Inns"]
["3563","Journey\u0092s End Motels"]
["3564","Sam\u0092s Town Hotel and Casino"]
["3565","Relax Inns"]
["3566","Garden Place Hotel"]
["3567","Soho Grand Hotel"]
["3568","Ladbroke Hotels"]
["3569","Tribeca Grand Hotel"]
["3570","Forum Hotels"]
["3571","Grand Wailea Resort"]
["3572","Miyako Hotel"]
["3573","Sandman Hotels"]
["3574","Venture Inn"]
["3575","Vagabond Hotels"]
["3576","La Quinta Resort"]
["3577","Mandarin Oriental Hotels"]
["3578","Frankenmuth Bavarian"]
["3579","Hotel Mercure"]
["3580","Hotel Del Coronado"]
["3581","Delta Hotels"]
["3582","California Hotel and Casino"]
["3583","SAS Hotels"]
["3584","Princess Hotels International"]
["3585","Hungar Hotels"]
["3586","Sokos Hotel"]
["3587","Doral Hotels"]
["3588","Helmsley Hotels"]
["3589","Doral Golf Resort"]
["3590","Fairmont Hotels"]
["3591","Sonesta Hotels"]
["3592","Omni Hotels"]
["3593","Cunard Hotels"]
["3594","Arizona Biltmore"]
["3595","Hospitality Inns"]
["3596","Wynn Las Vegas"]
["3597","Riverside Resort and Casino"]
["3598","Regent International Hotel"]
["3599","Pannonia Hotels"]
["3600","Saddlebrook Resort\u0097Tampa"]
["3601","TradeWinds Resorts"]
["3602","Hudson Hotel"]
["3603","Noah\u0092s Hotel"]
["3604","Hilton Garden Inn"]
["3605","Jurys Doyle Hotel Group"]
["3606","Jefferson Hotel"]
["3607","Fontainebleau Resort"]
["3608","Gaylord Opryland"]
["3609","Gaylord Palms"]
["3610","Gaylord Texan"]
["3611","C MON INN"]
["3612","Movenpick"]
["3613","Microtel Inn and Suites"]
["3614","AmericInn"]
["3615","Travelodge"]
["3616","Hermitage Hotel"]
["3617","America's Best Value Inn"]
["3618","Great Wolf"]
["3619","ALOFT"]
["3620","Binion\u0092s Horseshoe Club"]
["3621","Extended Stay"]
["3622","Merlin Hotel Group"]
["3623","Dorint Hotels"]
["3624","Lady Luck Hotel and Casino"]
["3625","Hotel Universale"]
["3626","Studio Plus"]
["3627","Extended Stay America"]
["3628","Excalibur Hotel and Casino"]
["3629","Dan Hotels"]
["3630","Extended Stay Deluxe"]
["3631","Sleep Inns"]
["3632","Phoenician"]
["3633","Rank Hotels"]
["3634","Swissotel"]
["3635","Reso Hotel"]
["3636","Sarova Hotels"]
["3637","Ramada Inns"]
["3638","Howard Johnson"]
["3639","Mount Charlotte Thistle"]
["3640","Hyatt Hotels"]
["3641","Sofitel Hotels"]
["3642","Novotel Hotels"]
["3643","Steigenberger Hotels"]
["3644","EconoLodges"]
["3645","Queens Moat Houses"]
["3646","Swallow Hotels"]
["3647","Husa Hotels"]
["3648","De Vera Hotels"]
["3649","Radisson Hotels"]
["3650","Red Roof Inns"]
["3651","Imperial London Hotels"]
["3652","Embassy Hotels"]
["3653","Penta Hotels"]
["3654","Loews Hotels"]
["3655","Scandic Hotels"]
["3656","Sara Hotels"]
["3657","Oberoi Hotels"]
["3658","New Otani Hotels"]
["3659","Taj Hotels International"]
["3660","Knights Inn"]
["3661","Metropole Hotels"]
["3662","Circus Circus Hotel and Casino"]
["3663","Hoteles El Presidente"]
["3664","Flag Inns"]
["3665","Hampton Inn Hotels"]
["3666","Stakis Hotels"]
["3667","Luxor Hotel and Casino"]
["3668","Maritim Hotels"]
["3669","Eldorado Hotel and Casino"]
["3670","Arcade Hotels"]
["3671","Arctia Hotels"]
["3672","Campanile Hotels"]
["3673","IBUSZ Hotels"]
["3674","Rantasipi Hotels"]
["3675","Interhotel CEDOK"]
["3676","Monte Carlo Hotel and Casino"]
["3677","Climat de France Hotels"]
["3678","Cumulus Hotels"]
["3679","Silver Legacy Hotel and Casino"]
["3680","Hoteis Othan"]
["3681","Adams Mark Hotels"]
["3682","Sahara Hotel and Casino"]
["3683","Bradbury Suites"]
["3684","Budget Hosts Inns"]
["3685","Budgetel Inns"]
["3686","Susse Chalet"]
["3687","Clarion Hotels"]
["3688","Compri Hotels"]
["3689","Consort Hotels"]
["3690","Courtyard by Marriott"]
["3691","Dillon Inn"]
["3692","Doubletree Hotels"]
["3693","Drury Inn"]
["3694","Economy Inns of America"]
["3695","Embassy Suites"]
["3696","Excel Inn"]
["3697","Fairfield Hotels"]
["3698","Harley Hotels"]
["3699","Midway Motor Lodge"]
["3700","Motel 6"]
["3701","La Mansion Del Rio"]
["3702","Registry Hotels"]
["3703","Residence Inn"]
["3704","Royce Hotels"]
["3705","Sandman Inn"]
["3706","Shilo Inn"]
["3707","Shoney\u0092s Inn"]
["3708","Virgin River Hotel and Casino"]
["3709","Super 8 Motels"]
["3710","Ritz Carlton"]
["3711","Flag Inns (Australia)"]
["3712","Buffalo Bill\u0092s Hotel and Casino"]
["3713","Quality Pacific Hotel"]
["3714","Four Seasons (Australia) Hotels"]
["3715","Fairfield Inn"]
["3716","Carlton Hotels"]
["3717","City Lodge Hotels"]
["3718","Karos Hotels"]
["3719","Protea Hotels"]
["3720","Southern Sun Hotels"]
["3721","Conrad Hotels"]
["3722","Wyndham"]
["3723","Rica Hotels"]
["3724","Inter Nor Hotels"]
["3725","Sea Pines Resort"]
["3726","Rio Suites"]
["3727","Broadmoor Hotel"]
["3728","Ballys Hotel and Casino"]
["3729","John Ascuagas Nugget"]
["3730","MGM Grand Hotel"]
["3731","Harrahs Hotels and Casinos"]
["3732","Opryland Hotel"]
["3733","Boca Raton Resort"]
["3734","Harvey Bristol Hotels"]
["3735","Masters Economy Inns"]
["3736","Colorado Belle Edgewater Resort"]
["3737","Riviera Hotel and Casino"]
["3738","Tropicana Resort and Casino"]
["3739","Woodside Hotels and Resorts"]
["3740","TownePlace Suites"]
["3741","Millennium Hotels"]
["3742","Club Med"]
["3743","Biltmore Hotel and Suites"]
["3744","Carefree Resorts"]
["3745","St. Regis Hotel"]
["3746","Eliot Hotels"]
["3747","Club Corp/Club Resorts"]
["3748","Wellesley Inns"]
["3749","Beverly Hills Hotel"]
["3750","Crowne Plaza Hotels"]
["3751","Homewood Suites"]
["3752","Peabody Hotels"]
["3753","Greenbriar Resorts"]
["3754","Amelia Island Plantation"]
["3755","Homestead"]
["3756","South Seas Resorts"]
["3757","Canyon Ranch"]
["3758","Kahala Mandarin Oriental Hotel"]
["3759","Orchid at Mauna Lani"]
["3760","Halekulani Hotel/Waikiki Parc"]
["3761","Primadonna Hotel and Casino"]
["3762","Whiskey Pete\u0092s Hotel and Casino"]
["3763","Chateau Elan Winery and Resort"]
["3764","Beau Rivage Hotel and Casino"]
["3765","Bellagio Hotel and Casino"]
["3766","Fremont Hotel and Casino"]
["3767","Main Street Hotel and Casino"]
["3768","Silver Star Hotel and Casino"]
["3769","Stratosphere Hotel and Casino"]
["3770","SpringHill Suites"]
["3771","Caesars Hotel and Casino"]
["3772","Nemacolin Woodlands"]
["3773","Venetian Resort Hotel and Casino, The"]
["3774","New York, New York Hotel and Casino"]
["3775","Sands Resort"]
["3776","Nevele Grande Resort and Country Club"]
["3777","Mandalay Bay Resort"]
["3778","Four Points Hotels"]
["3779","W Hotels"]
["3780","Disney Resorts"]
["3781","Patricia Grand Resort Hotels"]
["3782","Rosen Hotels and Resorts"]
["3783","Town and Country Resort & Convention Center"]
["3784","First Hospitality Hotels"]
["3785","Outrigger Hotels & Resorts"]
["3786","Ohana Hotels of Hawaii"]
["3787","Caribe Royale Resort Suites & Villas"]
["3788","Ala Moana Hotel"]
["3789","Smugglers\u0092 Notch Resort"]
["3790","Raffles Hotels"]
["3791","Staybridge Suites"]
["3792","Claridge Casino Hotel"]
["3793","The Flamingo Hotels"]
["3794","Grand Casino Hotels"]
["3795","Paris Las Vegas Hotel"]
["3796","Peppermill Hotel Casino"]
["3797","Atlantic City Hilton"]
["3798","Embassy Vacation Resort"]
["3799","Hale Koa Hotel"]
["3800","Homestead Suites"]
["3801","Wilderness Hotel and Golf Resort"]
["3802","The Palace Hotel"]
["3803","The Wigwam Golf Resort and Spa"]
["3804","The Diplomat Country Club and Spa"]
["3805","The Atlantic"]
["3806","Princeville Resort"]
["3807","Element"]
["3808","LXR (Luxury Resorts)"]
["3809","Settle Inn"]
["3810","La Costa Resort"]
["3811","Premier Inn"]
["3812","Hyatt Place"]
["3813","Hotel Indigo"]
["3814","The Roosevelt Hotel NY"]
["3815","Holiday Inn Nickelodeon"]
["3816","HOME2 Suites"]
["3817","Affinia"]
["3818","MAINSTAY SUITES"]
["3819","Oxford Suites"]
["3820","Jumeirah Essex House"]
["3821","Caribe Royale"]
["3822","Crossland"]
["3823","Grand Sierra Resort"]
["3824","Aria Hotels"]
["3825","Vdara"]
["3826","Autograph"]
["3827","Galt"]
["3828","Cosmopolitan Hotel"]
["3829","Country Inn By Carlson"]
["3830","Park Plaza Hotel"]
["3831","Waldorf"]
["3832","Curio Hotels"]
["3833","Canopy"]
["3834","Baymont Inn & Suites"]
["3835","Dolce"]
["3836","Hawthorne Suites by Wyndham"]

{"sheet":"TSYS","index":2,"n_rows":33,"n_cols":3,"rows_kept":33,"cut":false,"hidden":true,"merged":[]}
[null,null,{"$f":"CONCATENATE('Ascending Order'!D2)","v":"NYSTRAV (INCLUDE)"}]
[null,null,"0742,3000-3301,3302-3500,3501-4215,4411,4468-4722,4784-4789,5013,5172-5192\n5199,5310-5411,5441-5511,5531-5542,5552,5599-5631,5651-5655,5691,5699\n5811-5814,5912,5941-5943,5947,5962,5966,5969,5983,5994,5999,6300,6513\n7011-7012,7033,7299-7311,7338,7361,7399-7513,7523-7549,7692-7699,7832,8062\n8111,8220,8244-8299,8398-8641,8661-8699,8911,8999,9222,9399,9752"]
[]
[]
[null,null,{"$f":"CONCATENATE('Ascending Order'!F2)","v":" NYS1 (INCLUDE)"}]
[null,null,"3000-3301,3501-4215,4468-4722,4784-4789,5013,5172-5192,5199,5310-5411\n5441-5511,5531-5542,5552,5599-5631,5651-5655,5691,5699,5811-5814,5912\n5941-5943,5947,5962,5966,5969,5983,5994,5999,6300,6513,7011-7012,7033\n7299-7311,7338,7361,7399-7513,7523-7549,7692-7699,7832,8062,8111,8220\n8244-8299,8398-8641,8661-8699,8911,8999,9222,9399,9752"]
[]
[]
[null,null,{"$f":"CONCATENATE('Ascending Order'!H2)","v":"NYSPURCH (INCLUDE)"}]
[null,null,"0742-2842,4011-4225,4468,4722,4784-4821,4899-5262,5300,5310-5661,5691-5912\n5931-5932,5935-5943,5945-5999,6211-6513,6536-6555,7032-7261,7277-7296\n7299-7511,7513-7699,7829-7994,7996-8299,8398-9211,9399,9402-9405,9701-9753\n9950"]
[]
[]
[null,null,{"$f":"CONCATENATE('Ascending Order'!J2)","v":"CUSTOM4 (INCLUDE)"}]
[]
[]
[]
[null,null,{"$f":"CONCATENATE('Ascending Order'!L2)","v":"CUSTOM5 (INCLUDE)"}]
[]
[]
[]
[null,null,{"$f":"CONCATENATE('Ascending Order'!N2)","v":"CUSTOM6 (INCLUDE)"}]
[]
[]
[]
[null,null,{"$f":"CONCATENATE('Ascending Order'!P2)","v":"CUSTOM7 (INCLUDE)"}]
[]
[]
[]
[null,null,{"$f":"CONCATENATE('Ascending Order'!R2)","v":"CUSTOM8 (INCLUDE)"}]
[]
[]
[]
[null,null,{"$f":"CONCATENATE('Ascending Order'!T2)","v":"CUSTOM9 (INCLUDE)"}]

{"sheet":"Ascending Order","index":3,"n_rows":328,"n_cols":20,"rows_kept":328,"cut":false,"hidden":true,"merged":[[1,15,2,15],[1,17,2,17],[1,19,2,19],[0,0,2,0],[1,11,2,11],[1,13,2,13],[0,1,2,1],[1,9,2,9],[1,3,2,3],[1,5,2,5],[1,7,2,7]]}
["MERCHANT CATEGORY CODE\n(MCC)","MCC DESCRIPTION",null,"NAME OF GROUP:",null,"NAME OF GROUP:",null,"NAME OF GROUP:",null,"NAME OF GROUP:",null,"NAME OF GROUP:",null,"NAME OF GROUP:",null,"NAME OF GROUP:",null,"NAME OF GROUP:",null,"NAME OF GROUP:"]
[null,null,null,{"$f":"CONCATENATE('Standard & Custom MCC Groups'!D2,\" (\",'Standard & Custom MCC Groups'!D3,\")\")","v":"NYSTRAV (INCLUDE)"},null,{"$f":"CONCATENATE('Standard & Custom MCC Groups'!F2,\" (\",'Standard & Custom MCC Groups'!F3,\")\")","v":" NYS1 (INCLUDE)"},null,{"$f":"CONCATENATE('Standard & Custom MCC Groups'!H2,\" (\",'Standard & Custom MCC Groups'!H3,\")\")","v":"NYSPURCH (INCLUDE)"},null,{"$f":"CONCATENATE('Standard & Custom MCC Groups'!J2,\" (\",'Standard & Custom MCC Groups'!J3,\")\")","v":"CUSTOM4 (INCLUDE)"},null,{"$f":"CONCATENATE('Standard & Custom MCC Groups'!L2,\" (\",'Standard & Custom MCC Groups'!L3,\")\")","v":"CUSTOM5 (INCLUDE)"},null,{"$f":"CONCATENATE('Standard & Custom MCC Groups'!N2,\" (\",'Standard & Custom MCC Groups'!N3,\")\")","v":"CUSTOM6 (INCLUDE)"},null,{"$f":"CONCATENATE('Standard & Custom MCC Groups'!P2,\" (\",'Standard & Custom MCC Groups'!P3,\")\")","v":"CUSTOM7 (INCLUDE)"},null,{"$f":"CONCATENATE('Standard & Custom MCC Groups'!R2,\" (\",'Standard & Custom MCC Groups'!R3,\")\")","v":"CUSTOM8 (INCLUDE)"},null,{"$f":"CONCATENATE('Standard & Custom MCC Groups'!T2,\" (\",'Standard & Custom MCC Groups'!T3,\")\")","v":"CUSTOM9 (INCLUDE)"}]
[]
["0742","VETERINARY SERVICES",null,{"$f":"VLOOKUP($A4,MCCAll,4,FALSE)","v":"INCLUDE"},null,{"$f":"VLOOKUP($A4,MCCAll,6,FALSE)","v":0},null,{"$f":"VLOOKUP($A4,MCCAll,8,FALSE)","v":"INCLUDE"},null,{"$f":"VLOOKUP($A4,MCCAll,10,FALSE)","v":0},null,{"$f":"VLOOKUP($A4,MCCAll,12,FALSE)","v":0},null,{"$f":"VLOOKUP($A4,MCCAll,14,FALSE)","v":0},null,{"$f":"VLOOKUP($A4,MCCAll,16,FALSE)","v":0},null,{"$f":"VLOOKUP($A4,MCCAll,18,FALSE)","v":0},null,{"$f":"VLOOKUP($A4,MCCAll,20,FALSE)","v":0}]
["0763","AGRICULTURAL CO-OPERATIVE",null,{"$f":"VLOOKUP($A5,MCCAll,4,FALSE)","v":0},null,0,null,"INCLUDE",null,0,null,0,null,0,null,0,null,0,null,0]
["0780","LANDSCAPE/HORTICULTURAL SER",null,0,null,0,null,"INCLUDE",null,0,null,0,null,0,null,0,null,0,null,0]
["1520","GEN CONTRACTORS RESIDENTIAL",null,0,null,0,null,"INCLUDE",null,0,null,0,null,0,null,0,null,0,null,0]
["1711","HEATING, PLUMBING, AIR COND",null,0,null,0,null,"INCLUDE",null,0,null,0,null,0,null,0,null,0,null,0]
["1731","ELECTRICAL CONTRACTORS",null,0,null,0,null,"INCLUDE",null,0,null,0,null,0,null,0,null,0,null,0]
["1740","MASONRY/TILE/PLASTER/INSUL",null,0,null,0,null,"INCLUDE",null,0,null,0,null,0,null,0,null,0,null,0]
["1750","CARPENTRY",null,0,null,0,null,"INCLUDE",null,0,null,0,null,0,null,0,null,0,null,0]
["1761","ROOFING/SIDING/SHEET METAL",null,0,null,0,null,"INCLUDE",null,0,null,0,null,0,null,0,null,0,null,0]
["1771","CONTRACTORS - CONCRETE",null,0,null,0,null,"INCLUDE",null,0,null,0,null,0,null,0,null,0,null,0]
["1799","SPEC CONTRACTORS",null,0,null,0,null,"INCLUDE",null,0,null,0,null,0,null,0,null,0,null,0]
["2741","MISC PUBLISH AND PRINT",null,0,null,0,null,"INCLUDE",null,0,null,0,null,0,null,0,null,0,null,0]
["2791","TYPESETTING, PLATE MAKING",null,0,null,0,null,"INCLUDE",null,0,null,0,null,0,null,0,null,0,null,0]
["2842","SPECIALTY CLEANING SANITATION",null,0,null,0,null,"INCLUDE",null,0,null,0,null,0,null,0,null,0,null,0]
["3000-3301","AIRLINES",null,"INCLUDE",null,"INCLUDE",null,0,null,0,null,0,null,0,null,0,null,0,null,0]
["3302-3500","CAR RENTAL",null,"INCLUDE",null,0,null,0,null,0,null,0,null,0,null,0,null,0,null,0]
["3501-4000","HOTELS",null,"INCLUDE",null,"INCLUDE",null,0,null,0,null,0,null,0,null,0,null,0,null,0]
["4011","RAILROADS",null,"INCLUDE",null,"INCLUDE",null,"INCLUDE",null,0,null,0,null,0,null,0,null,0,null,0]
["4111","LOCAL COMMUTER TRANSPORT",null,"INCLUDE",null,"INCLUDE",null,"INCLUDE",null,0,null,0,null,0,null,0,null,0,null,0]
["4112","PASSENGER RAIL",null,"INCLUDE",null,"INCLUDE",null,"INCLUDE",null,0,null,0,null,0,null,0,null,0,null,0]
["4119","AMBULANCE SERVICE",null,"INCLUDE",null,"INCLUDE",null,"INCLUDE",null,0,null,0,null,0,null,0,null,0,null,0]
["4121","TAXICABS/LIMOUSINES",null,"INCLUDE",null,"INCLUDE",null,"INCLUDE",null,0,null,0,null,0,null,0,null,0,null,0]
["4131","BUS LINES/CHARTER/TOUR",null,"INCLUDE",null,"INCLUDE",null,"INCLUDE",null,0,null,0,null,0,null,0,null,0,null,0]
["4214","MOTOR FREIGHT CARRIERS",null,"INCLUDE",null,"INCLUDE",null,"INCLUDE",null,0,null,0,null,0,null,0,null,0,null,0]
["4215","COURIER SERVICES",null,"INCLUDE",null,"INCLUDE",null,"INCLUDE",null,0,null,0,null,0,null,0,null,0,null,0]
["4225","PUBLIC WAREHOUSING",null,0,null,0,null,"INCLUDE",null,0,null,0,null,0,null,0,null,0,null,0]
["4411","STEAMSHIP/CRUISE LINES",null,"INCLUDE",null,0,null,0,null,0,null,0,null,0,null,0,null,0,null,0]
["4457","BOAT RENTALS & LEASES",null,0,null,0,null,0,null,0,null,0,null,0,null,0,null,0,null,0]
["4468","MARINAS, SERVICE & SUPPLY",null,"INCLUDE",null,"INCLUDE",null,"INCLUDE",null,0,null,0,null,0,null,0,null,0,null,0]
["4511","AIRLINES ",null,"INCLUDE",null,"INCLUDE",null,0,null,0,null,0,null,0,null,0,null,0,null,0]
["4582","AIRPORTS/FIELDS/TERMINALS",null,"INCLUDE",null,"INCLUDE",null,0,null,0,null,0,null,0,null,0,null,0,null,0]
["4722","TRAVEL AGENCIES",null,"INCLUDE",null,"INCLUDE",null,"INCLUDE",null,0,null,0,null,0,null,0,null,0,null,0]
["4723","OTHER TRAVEL/PKG TOUR OPERATORS - GERMANY ONLY",null,0,null,0,null,0,null,0,null,0,null,0,null,0,null,0,null,0]
["4761","TELEMARKETING OF TRAVEL RELATED SERVICES AND VITAMINS    ",null,{"$f":"VLOOKUP($A37,MCCAll,4,FALSE)","v":0},null,{"$f":"VLOOKUP($A37,MCCAll,6,FALSE)","v":0},null,{"$f":"VLOOKUP($A37,MCCAll,8,FALSE)","v":0},null,{"$f":"VLOOKUP($A37,MCCAll,10,FALSE)","v":0},null,{"$f":"VLOOKUP($A37,MCCAll,12,FALSE)","v":0},null,{"$f":"VLOOKUP($A37,MCCAll,14,FALSE)","v":0},null,{"$f":"VLOOKUP($A37,MCCAll,16,FALSE)","v":0},null,{"$f":"VLOOKUP($A37,MCCAll,18,FALSE)","v":0},null,{"$f":"VLOOKUP($A37,MCCAll,20,FALSE)","v":0}]
["4784","TOLL AND BRIDGE FEES",null,"INCLUDE",null,"INCLUDE",null,"INCLUDE",null,0,null,0,null,0,null,0,null,0,null,0]
["4789","TRAVEL SERVICE",null,"INCLUDE",null,"INCLUDE",null,"INCLUDE",null,0,null,0,null,0,null,0,null,0,null,0]
["4812","PHONE SERV/EQUIP NON-UTIL",null,0,null,0,null,"INCLUDE",null,0,null,0,null,0,null,0,null,0,null,0]
["4813","KEY-ENTERED TELECOM MERCHANT  ",null,{"$f":"VLOOKUP($A41,MCCAll,4,FALSE)","v":0},null,{"$f":"VLOOKUP($A41,MCCAll,6,FALSE)","v":0},null,{"$f":"VLOOKUP($A41,MCCAll,8,FALSE)","v":"INCLUDE"},null,{"$f":"VLOOKUP($A41,MCCAll,10,FALSE)","v":0},null,{"$f":"VLOOKUP($A41,MCCAll,12,FALSE)","v":0},null,{"$f":"VLOOKUP($A41,MCCAll,14,FALSE)","v":0},null,{"$f":"VLOOKUP($A41,MCCAll,16,FALSE)","v":0},null,{"$f":"VLOOKUP($A41,MCCAll,18,FALSE)","v":0},null,{"$f":"VLOOKUP($A41,MCCAll,20,FALSE)","v":0}]
["4814","PHONE SERV/EQUIP UTILITY",null,0,null,0,null,"INCLUDE",null,0,null,0,null,0,null,0,null,0,null,0]
["4815","VISA PHONE",null,{"$f":"VLOOKUP($A43,MCCAll,4,FALSE)","v":0},null,{"$f":"VLOOKUP($A43,MCCAll,6,FALSE)","v":0},null,{"$f":"VLOOKUP($A43,MCCAll,8,FALSE)","v":"INCLUDE"},null,{"$f":"VLOOKUP($A43,MCCAll,10,FALSE)","v":0},null,{"$f":"VLOOKUP($A43,MCCAll,12,FALSE)","v":0},null,{"$f":"VLOOKUP($A43,MCCAll,14,FALSE)","v":0},null,{"$f":"VLOOKUP($A43,MCCAll,16,FALSE)","v":0},null,{"$f":"VLOOKUP($A43,MCCAll,18,FALSE)","v":0},null,{"$f":"VLOOKUP($A43,MCCAll,20,FALSE)","v":0}]
["4816","ELECTRONIC COMMERCE / INFO",null,0,null,0,null,"INCLUDE",null,0,null,0,null,0,null,0,null,0,null,0]
["4821","TELEGRAPH SERVICES",null,0,null,0,null,"INCLUDE",null,0,null,0,null,0,null,0,null,0,null,0]
["4829","WIRE TRANSFER - MONEY ORDER",null,0,null,0,null,0,null,0,null,0,null,0,null,0,null,0,null,0]
["4899","CABLE TV SERVICES",null,0,null,0,null,"INCLUDE",null,0,null,0,null,0,null,0,null,0,null,0]
["4900","UTILITIES/ELEC/GAS/H2O/SANITATION",null,0,null,0,null,"INCLUDE",null,0,null,0,null,0,null,0,null,0,null,0]
["5013","MOTOR VEHICLE SUPPLIES",null,"INCLUDE",null,"INCLUDE",null,"INCLUDE",null,0,null,0,null,0,null,0,null,0,null,0]
["5021","COMMERCIAL FURNITURE",null,0,null,0,null,"INCLUDE",null,0,null,0,null,0,null,0,null,0,null,0]
["5039","CONSTRUCTION MATERIALS - OTHR",null,0,null,0,null,"INCLUDE",null,0,null,0,null,0,null,0,null,0,null,0]
["5044","PHOTOGRAPH, PHOTOCOPY EQUIPT",null,0,null,0,null,"INCLUDE",null,0,null,0,null,0,null,0,null,0,null,0]
["5045","COMPUTERS, PERIPHERALS",null,0,null,0,null,"INCLUDE",null,0,null,0,null,0,null,0,null,0,null,0]
["5046","COMMERCIAL EQUIPMENT - OTHER",null,0,null,0,null,"INCLUDE",null,0,null,0,null,0,null,0,null,0,null,0]
["5047","MEDICAL EQUIPMENT & SUPPLIES",null,0,null,0,null,"INCLUDE",null,0,null,0,null,0,null,0,null,0,null,0]
["5051","METAL SERVICE CENTERS AND OFFICES",null,0,null,0,null,"INCLUDE",null,0,null,0,null,0,null,0,null,0,null,0]
["5065","ELECTRICAL PARTS & EQUIPMENT",null,0,null,0,null,"INCLUDE",null,0,null,0,null,0,null,0,null,0,null,0]
["5072","HARDWARE EQUIPMENT & SUPPLIES",null,0,null,0,null,"INCLUDE",null,0,null,0,null,0,null,0,null,0,null,0]
["5074","PLUMBING & HEATING EQUIPMENT",null,0,null,0,null,"INCLUDE",null,0,null,0,null,0,null,0,null,0,null,0]
["5085","INDUSTRIAL SUPPLIES - OTHER",null,0,null,0,null,"INCLUDE",null,0,null,0,null,0,null,0,null,0,null,0]
["5094","PRECIOUS STONES & METALS",null,0,null,0,null,"INCLUDE",null,0,null,0,null,0,null,0,null,0,null,0]
["5099","DURABLE GOODS - OTHER",null,0,null,0,null,"INCLUDE",null,0,null,0,null,0,null,0,null,0,null,0]
["5111","STATIONERY, OFFICE SUPPLIES",null,0,null,0,null,"INCLUDE",null,0,null,0,null,0,null,0,null,0,null,0]
["5122","DRUGS, DRUGGIST SUNDRIES",null,0,null,0,null,"INCLUDE",null,0,null,0,null,0,null,0,null,0,null,0]
["5131","PIECE GOODS NOTIONS DRY GDS",null,0,null,0,null,"INCLUDE",null,0,null,0,null,0,null,0,null,0,null,0]
["5137","COMMERCIAL CLOTHING",null,0,null,0,null,"INCLUDE",null,0,null,0,null,0,null,0,null,0,null,0]
["5139","COMMERCIAL FOOTWEAR",null,0,null,0,null,"INCLUDE",null,0,null,0,null,0,null,0,null,0,null,0]
["5169","CHEMICALS & ALLIED PDCTS OTHR",null,0,null,0,null,"INCLUDE",null,0,null,0,null,0,null,0,null,0,null,0]
["5172","PETROLEUM PRODUCTS",null,"INCLUDE",null,"INCLUDE",null,"INCLUDE",null,0,null,0,null,0,null,0,null,0,null,0]
["5192","BOOKS, PERIODICALS, NEWSPAPER",null,"INCLUDE",null,"INCLUDE",null,"INCLUDE",null,0,null,0,null,0,null,0,null,0,null,0]
["5193","FLORIST & NURSERY SUPPLIES",null,{"$f":"VLOOKUP($A71,MCCAll,4,FALSE)","v":0},null,{"$f":"VLOOKUP($A71,MCCAll,6,FALSE)","v":0},null,{"$f":"VLOOKUP($A71,MCCAll,8,FALSE)","v":"INCLUDE"},null,{"$f":"VLOOKUP($A71,MCCAll,10,FALSE)","v":0},null,{"$f":"VLOOKUP($A71,MCCAll,12,FALSE)","v":0},null,{"$f":"VLOOKUP($A71,MCCAll,14,FALSE)","v":0},null,{"$f":"VLOOKUP($A71,MCCAll,16,FALSE)","v":0},null,{"$f":"VLOOKUP($A71,MCCAll,18,FALSE)","v":0},null,{"$f":"VLOOKUP($A71,MCCAll,20,FALSE)","v":0}]
["5198","PAINTS, VARNISHES & SUPPLIES",null,0,null,0,null,"INCLUDE",null,0,null,0,null,0,null,0,null,0,null,0]
["5199","NONDURABLE GOODS - OTHER",null,"INCLUDE",null,"INCLUDE",null,"INCLUDE",null,0,null,0,null,0,null,0,null,0,null,0]
["5200","HOME SUPPLY WAREHOUSE STORE",null,0,null,0,null,"INCLUDE",null,0,null,0,null,0,null,0,null,0,null,0]
["5211","LUMBER/BUILD SUPPLY STORES",null,0,null,0,null,"INCLUDE",null,0,null,0,null,0,null,0,null,0,null,0]
["5231","GLASS/PAINT/WALLPAPER STORE",null,0,null,0,null,"INCLUDE",null,0,null,0,null,0,null,0,null,0,null,0]
["5251","HARDWARE STORES",null,0,null,0,null,"INCLUDE",null,0,null,0,null,0,null,0,null,0,null,0]
["5261","LAWN/GARDEN SUPPLY/NURSERY",null,0,null,0,null,"INCLUDE",null,0,null,0,null,0,null,0,null,0,null,0]
["5262","MARKET PLACES",null,{"$f":"VLOOKUP($A79,MCCAll,4,FALSE)","v":0},null,{"$f":"VLOOKUP($A79,MCCAll,6,FALSE)","v":0},null,{"$f":"VLOOKUP($A79,MCCAll,8,FALSE)","v":"INCLUDE"},null,{"$f":"VLOOKUP($A79,MCCAll,10,FALSE)","v":0},null,{"$f":"VLOOKUP($A79,MCCAll,12,FALSE)","v":0},null,{"$f":"VLOOKUP($A79,MCCAll,14,FALSE)","v":0},null,{"$f":"VLOOKUP($A79,MCCAll,16,FALSE)","v":0},null,{"$f":"VLOOKUP($A79,MCCAll,18,FALSE)","v":0},null,{"$f":"VLOOKUP($A79,MCCAll,20,FALSE)","v":0}]
["5271","MOBILE HOME DEALERS",null,0,null,0,null,0,null,0,null,0,null,0,null,0,null,0,null,0]
["5300","WHOLESALE CLUBS",null,0,null,0,null,"INCLUDE",null,0,null,0,null,0,null,0,null,0,null,0]
["5309","DUTY-FREE STORES",null,0,null,0,null,0,null,0,null,0,null,0,null,0,null,0,null,0]
["5310","DISCOUNT STORES",null,"INCLUDE",null,"INCLUDE",null,"INCLUDE",null,0,null,0,null,0,null,0,null,0,null,0]
["5311","DEPARTMENT STORES",null,"INCLUDE",null,"INCLUDE",null,"INCLUDE",null,0,null,0,null,0,null,0,null,0,null,0]
["5331","VARIETY STORES",null,"INCLUDE",null,"INCLUDE",null,"INCLUDE",null,0,null,0,null,0,null,0,null,0,null,0]
["5399","MISC GEN MERCHANDISE",null,"INCLUDE",null,"INCLUDE",null,"INCLUDE",null,0,null,0,null,0,null,0,null,0,null,0]
["5411","GROCERY STORES",null,"INCLUDE",null,"INCLUDE",null,"INCLUDE",null,0,null,0,null,0,null,0,null,0,null,0]
["5422","FREEZER/MEAT LOCKERS",null,0,null,0,null,"INCLUDE",null,0,null,0,null,0,null,0,null,0,null,0]
["5441","CANDY/NUT/CONFECTION STORE",null,"INCLUDE",null,"INCLUDE",null,"INCLUDE",null,0,null,0,null,0,null,0,null,0,null,0]
["5451","DAIRY PRODUCT STORES",null,"INCLUDE",null,"INCLUDE",null,"INCLUDE",null,0,null,0,null,0,null,0,null,0,null,0]
["5462","BAKERIES",null,"INCLUDE",null,"INCLUDE",null,"INCLUDE",null,0,null,0,null,0,null,0,null,0,null,0]
["5499","MISC FOOD STORES",null,"INCLUDE",null,"INCLUDE",null,"INCLUDE",null,0,null,0,null,0,null,0,null,0,null,0]
["5511","AUTO DEALERS/NEW AND USED",null,"INCLUDE",null,"INCLUDE",null,"INCLUDE",null,0,null,0,null,0,null,0,null,0,null,0]
["5521","AUTO DEALERS USED ONLY",null,0,null,0,null,"INCLUDE",null,0,null,0,null,0,null,0,null,0,null,0]
["5531","AUTO/HOME SUPPLY STORES",null,"INCLUDE",null,"INCLUDE",null,"INCLUDE",null,0,null,0,null,0,null,0,null,0,null,0]
["5532","AUTOMOTIVE TIRE STORES",null,"INCLUDE",null,"INCLUDE",null,"INCLUDE",null,0,null,0,null,0,null,0,null,0,null,0]
["5533","AUTOMOTIVE PARTS STORES",null,"INCLUDE",null,"INCLUDE",null,"INCLUDE",null,0,null,0,null,0,null,0,null,0,null,0]
["5541","SERVICE STATIONS",null,"INCLUDE",null,"INCLUDE",null,"INCLUDE",null,0,null,0,null,0,null,0,null,0,null,0]
["5542","AUTOMATED GAS DISPENSERS",null,"INCLUDE",null,"INCLUDE",null,"INCLUDE",null,0,null,0,null,0,null,0,null,0,null,0]
["5551","BOAT DEALERS",null,0,null,0,null,"INCLUDE",null,0,null,0,null,0,null,0,null,0,null,0]
["5552","ELECTRIC CAR CHARGING",null,{"$f":"VLOOKUP($A101,MCCAll,4,FALSE)","v":"INCLUDE"},null,{"$f":"VLOOKUP($A101,MCCAll,6,FALSE)","v":"INCLUDE"},null,{"$f":"VLOOKUP($A101,MCCAll,8,FALSE)","v":"INCLUDE"},null,{"$f":"VLOOKUP($A101,MCCAll,10,FALSE)","v":0},null,{"$f":"VLOOKUP($A101,MCCAll,12,FALSE)","v":0},null,{"$f":"VLOOKUP($A101,MCCAll,14,FALSE)","v":0},null,{"$f":"VLOOKUP($A101,MCCAll,16,FALSE)","v":0},null,{"$f":"VLOOKUP($A101,MCCAll,18,FALSE)","v":0},null,{"$f":"VLOOKUP($A101,MCCAll,20,FALSE)","v":0}]
["5561","TRAILER CAMPER DEALERS",null,0,null,0,null,"INCLUDE",null,0,null,0,null,0,null,0,null,0,null,0]
["5571","MOTORCYCLE DEALERS",null,0,null,0,null,"INCLUDE",null,0,null,0,null,0,null,0,null,0,null,0]
["5592","MOTOR HOME DEALERS",null,0,null,0,null,"INCLUDE",null,0,null,0,null,0,null,0,null,0,null,0]
["5598","SNOWMOBILE DEALERS",null,0,null,0,null,"INCLUDE",null,0,null,0,null,0,null,0,null,0,null,0]
["5599","MISC AUTO DEALERS",null,"INCLUDE",null,"INCLUDE",null,"INCLUDE",null,0,null,0,null,0,null,0,null,0,null,0]
["5611","MEN/BOYS CLOTHING/ACC STORE",null,"INCLUDE",null,"INCLUDE",null,"INCLUDE",null,0,null,0,null,0,null,0,null,0,null,0]
["5621","WOMENS READY TO WEAR STORES",null,"INCLUDE",null,"INCLUDE",null,"INCLUDE",null,0,null,0,null,0,null,0,null,0,null,0]
["5631","WOMENS ACCESS/SPECIALTY",null,"INCLUDE",null,"INCLUDE",null,"INCLUDE",null,0,null,0,null,0,null,0,null,0,null,0]
["5641","CHILDREN/INFANTS WEAR STORE",null,0,null,0,null,"INCLUDE",null,0,null,0,null,0,null,0,null,0,null,0]
["5651","FAMILY CLOTHING STORES",null,"INCLUDE",null,"INCLUDE",null,"INCLUDE",null,0,null,0,null,0,null,0,null,0,null,0]
["5655","SPORTS/RIDING APPAREL STORE",null,"INCLUDE",null,"INCLUDE",null,"INCLUDE",null,0,null,0,null,0,null,0,null,0,null,0]
["5661","SHOE STORES",null,0,null,0,null,"INCLUDE",null,0,null,0,null,0,null,0,null,0,null,0]
["5681","FURRIERS AND FUR SHOPS",null,0,null,0,null,0,null,0,null,0,null,0,null,0,null,0,null,0]
["5691","MENS/WOMENS CLOTHING STORES",null,"INCLUDE",null,"INCLUDE",null,"INCLUDE",null,0,null,0,null,0,null,0,null,0,null,0]
["5697","TAILOR/SEAMSTRESS/ALTERATIONS",null,0,null,0,null,"INCLUDE",null,0,null,0,null,0,null,0,null,0,null,0]
["5698","WIG AND TOUPEE STORES",null,0,null,0,null,"INCLUDE",null,0,null,0,null,0,null,0,null,0,null,0]
["5699","MISC APPAREL/ACCESS SHOPS",null,"INCLUDE",null,"INCLUDE",null,"INCLUDE",null,0,null,0,null,0,null,0,null,0,null,0]
["5712","FURNITURE/EQUIP STORES",null,0,null,0,null,"INCLUDE",null,0,null,0,null,0,null,0,null,0,null,0]
["5713","FLOOR COVERING STORES",null,0,null,0,null,"INCLUDE",null,0,null,0,null,0,null,0,null,0,null,0]
["5714","DRAPERY & UPHOLSTERY STORES",null,0,null,0,null,"INCLUDE",null,0,null,0,null,0,null,0,null,0,null,0]
["5718","FIREPLACES & ACCESSORIES",null,0,null,0,null,"INCLUDE",null,0,null,0,null,0,null,0,null,0,null,0]
["5719","MISC HOME FURNISHING",null,0,null,0,null,"INCLUDE",null,0,null,0,null,0,null,0,null,0,null,0]
["5722","HOUSEHOLD APPLIANCE STORES",null,0,null,0,null,"INCLUDE",null,0,null,0,null,0,null,0,null,0,null,0]
["5732","RADIO TV & STEREO STORES",null,0,null,0,null,"INCLUDE",null,0,null,0,null,0,null,0,null,0,null,0]
["5733","MUSIC STORES/PIANOS",null,0,null,0,null,"INCLUDE",null,0,null,0,null,0,null,0,null,0,null,0]
["5734","COMPUTER SOFTWARE/RECORD STORES",null,0,null,0,null,"INCLUDE",null,0,null,0,null,0,null,0,null,0,null,0]
["5735","RECORD SHOPS",null,0,null,0,null,"INCLUDE",null,0,null,0,null,0,null,0,null,0,null,0]
["5811","CATERERS",null,"INCLUDE",null,"INCLUDE",null,"INCLUDE",null,0,null,0,null,0,null,0,null,0,null,0]
["5812","RESTAURANTS",null,"INCLUDE",null,"INCLUDE",null,"INCLUDE",null,0,null,0,null,0,null,0,null,0,null,0]
["5813","BARS/TAVERNS/LOUNGES/DISCOS",null,"INCLUDE",null,"INCLUDE",null,"INCLUDE",null,0,null,0,null,0,null,0,null,0,null,0]
["5814","FAST FOOD RESTAURANTS",null,"INCLUDE",null,"INCLUDE",null,"INCLUDE",null,0,null,0,null,0,null,0,null,0,null,0]
["5815","AUDIOVISUAL MEDIA INCLUDING BOOKS, MOVIES, AND MUSIC",null,0,null,0,null,"INCLUDE",null,0,null,0,null,0,null,0,null,0,null,0]
["5816","GAMES",null,0,null,0,null,"INCLUDE",null,0,null,0,null,0,null,0,null,0,null,0]
["5817","SOFTWARE APPLICATIONS EXCLUDING GAMES",null,0,null,0,null,"INCLUDE",null,0,null,0,null,0,null,0,null,0,null,0]
["5818","MULTI-CATEGORY",null,{"$f":"VLOOKUP($A136,MCCAll,4,FALSE)","v":0},null,{"$f":"VLOOKUP($A136,MCCAll,6,FALSE)","v":0},null,{"$f":"VLOOKUP($A136,MCCAll,8,FALSE)","v":"INCLUDE"},null,{"$f":"VLOOKUP($A136,MCCAll,10,FALSE)","v":0},null,{"$f":"VLOOKUP($A136,MCCAll,12,FALSE)","v":0},null,{"$f":"VLOOKUP($A136,MCCAll,14,FALSE)","v":0},null,{"$f":"VLOOKUP($A136,MCCAll,16,FALSE)","v":0},null,{"$f":"VLOOKUP($A136,MCCAll,18,FALSE)","v":0},null,{"$f":"VLOOKUP($A136,MCCAll,20,FALSE)","v":0}]
["5912","DRUG STORES & PHARMACIES",null,"INCLUDE",null,"INCLUDE",null,"INCLUDE",null,0,null,0,null,0,null,0,null,0,null,0]
["5921","PKG STORES/BEER/WINE/LIQUOR",null,0,null,0,null,0,null,0,null,0,null,0,null,0,null,0,null,0]
["5931","USED MERCHANDISE STORES",null,0,null,0,null,"INCLUDE",null,0,null,0,null,0,null,0,null,0,null,0]
["5932","ANTIQUE SHOPS",null,0,null,0,null,"INCLUDE",null,0,null,0,null,0,null,0,null,0,null,0]
["5933","PAWN SHOPS",null,0,null,0,null,0,null,0,null,0,null,0,null,0,null,0,null,0]
["5935","WRECKING SALVAGE YARDS",null,0,null,0,null,"INCLUDE",null,0,null,0,null,0,null,0,null,0,null,0]
["5937","ANTIQUE REPRODUCTIONS",null,0,null,0,null,"INCLUDE",null,0,null,0,null,0,null,0,null,0,null,0]
["5940","BICYCLE SHOPS/SALES/SERVICE",null,0,null,0,null,"INCLUDE",null,0,null,0,null,0,null,0,null,0,null,0]
["5941","SPORTING GOODS STORES",null,"INCLUDE",null,"INCLUDE",null,"INCLUDE",null,0,null,0,null,0,null,0,null,0,null,0]
["5942","BOOK STORES",null,"INCLUDE",null,"INCLUDE",null,"INCLUDE",null,0,null,0,null,0,null,0,null,0,null,0]
["5943","STATIONERY STORES",null,"INCLUDE",null,"INCLUDE",null,"INCLUDE",null,0,null,0,null,0,null,0,null,0,null,0]
["5944","JEWELRY STORES",null,0,null,0,null,0,null,0,null,0,null,0,null,0,null,0,null,0]
["5945","HOBBY, TOY & GAME SHOPS",null,0,null,0,null,"INCLUDE",null,0,null,0,null,0,null,0,null,0,null,0]
["5946","CAMERA & PHOTO SUPPLY STORE",null,0,null,0,null,"INCLUDE",null,0,null,0,null,0,null,0,null,0,null,0]
["5947","GIFT, CARD, NOVELTY STORES",null,"INCLUDE",null,"INCLUDE",null,"INCLUDE",null,0,null,0,null,0,null,0,null,0,null,0]
["5948","LUGGAGE/LEATHER STORES",null,0,null,0,null,"INCLUDE",null,0,null,0,null,0,null,0,null,0,null,0]
["5949","FABRIC STORES",null,0,null,0,null,"INCLUDE",null,0,null,0,null,0,null,0,null,0,null,0]
["5950","GLASSWARE/CRYSTAL STORES",null,0,null,0,null,"INCLUDE",null,0,null,0,null,0,null,0,null,0,null,0]
["5960","DIRECT MARKET INSURANCE",null,0,null,0,null,"INCLUDE",null,0,null,0,null,0,null,0,null,0,null,0]
["5962","TELEMARKETING TRAVEL-RELATED",null,"INCLUDE",null,"INCLUDE",null,"INCLUDE",null,0,null,0,null,0,null,0,null,0,null,0]
["5963","DIRECT SELL/DOOR-TO-DOOR",null,0,null,0,null,"INCLUDE",null,0,null,0,null,0,null,0,null,0,null,0]
["5964","CATALOG MERCHANT",null,0,null,0,null,"INCLUDE",null,0,null,0,null,0,null,0,null,0,null,0]
["5965","COMBINATION  MAIL/RETAIL",null,0,null,0,null,"INCLUDE",null,0,null,0,null,0,null,0,null,0,null,0]
["5966","OUTBOUND TELEMARKETING",null,"INCLUDE",null,"INCLUDE",null,"INCLUDE",null,0,null,0,null,0,null,0,null,0,null,0]
["5967","INBOUND TELESERVICES",null,0,null,0,null,"INCLUDE",null,0,null,0,null,0,null,0,null,0,null,0]
["5968","SUBSCRIPTION MERCHANT",null,0,null,0,null,"INCLUDE",null,0,null,0,null,0,null,0,null,0,null,0]
["5969","OTHER DIRECT MARKETERS",null,"INCLUDE",null,"INCLUDE",null,"INCLUDE",null,0,null,0,null,0,null,0,null,0,null,0]
["5970","ARTIST/CRAFT STORES",null,0,null,0,null,"INCLUDE",null,0,null,0,null,0,null,0,null,0,null,0]
["5971","ART DEALERS & GALLERIES",null,0,null,0,null,"INCLUDE",null,0,null,0,null,0,null,0,null,0,null,0]
["5972","STAMP & COIN STORES",null,0,null,0,null,"INCLUDE",null,0,null,0,null,0,null,0,null,0,null,0]
["5973","RELIGIOUS GOODS STORES",null,0,null,0,null,"INCLUDE",null,0,null,0,null,0,null,0,null,0,null,0]
["5975","HEARING AID/SALES/SERVICE",null,0,null,0,null,"INCLUDE",null,0,null,0,null,0,null,0,null,0,null,0]
["5976","ORTHOPEDIC GOODS",null,0,null,0,null,"INCLUDE",null,0,null,0,null,0,null,0,null,0,null,0]
["5977","COSMETIC STORES",null,0,null,0,null,"INCLUDE",null,0,null,0,null,0,null,0,null,0,null,0]
["5978","TYPEWRITER/SALES/SERVICE",null,0,null,0,null,"INCLUDE",null,0,null,0,null,0,null,0,null,0,null,0]
["5983","FUEL DEALERS - OIL, WOOD, COAL",null,"INCLUDE",null,"INCLUDE",null,"INCLUDE",null,0,null,0,null,0,null,0,null,0,null,0]
["5992","FLORISTS",null,0,null,0,null,"INCLUDE",null,0,null,0,null,0,null,0,null,0,null,0]
["5993","CIGAR STORES/STANDS",null,0,null,0,null,"INCLUDE",null,0,null,0,null,0,null,0,null,0,null,0]
["5994","NEWS DEALERS/NEWSTANDS",null,"INCLUDE",null,"INCLUDE",null,"INCLUDE",null,0,null,0,null,0,null,0,null,0,null,0]
["5995","PET STORES/FOOD & SUPPLY",null,0,null,0,null,"INCLUDE",null,0,null,0,null,0,null,0,null,0,null,0]
["5996","SWIMMING POOLS/SALES/SERV",null,0,null,0,null,"INCLUDE",null,0,null,0,null,0,null,0,null,0,null,0]
["5997","ELEC RAZOR STORES/SALE/SERV",null,0,null,0,null,"INCLUDE",null,0,null,0,null,0,null,0,null,0,null,0]
["5998","TENT AND AWNING SHOPS",null,0,null,0,null,"INCLUDE",null,0,null,0,null,0,null,0,null,0,null,0]
["5999","MISC SPECIALITY RETAIL",null,"INCLUDE",null,"INCLUDE",null,"INCLUDE",null,0,null,0,null,0,null,0,null,0,null,0]
["6010","MEMBER-MANUAL CASH DISBURSEMENT",null,0,null,0,null,0,null,0,null,0,null,0,null,0,null,0,null,0]
["6011","MEMBER-AUTOMATED CASH DISBURSEMENT",null,0,null,0,null,0,null,0,null,0,null,0,null,0,null,0,null,0]
["6012","MEMBER-MERCHANDISE AND SERVICES",null,0,null,0,null,0,null,0,null,0,null,0,null,0,null,0,null,0]
["6050","QUASI CASH - MEMBER",null,0,null,0,null,0,null,0,null,0,null,0,null,0,null,0,null,0]
["6051","QUASI CASH-MERCHANT",null,0,null,0,null,0,null,0,null,0,null,0,null,0,null,0,null,0]
["6211","SECURITIES BROKERS/DEALERS",null,0,null,0,null,"INCLUDE",null,0,null,0,null,0,null,0,null,0,null,0]
["6300","INSURANCE SALES, UNDERWRITING, AND PREMIUMS",null,"INCLUDE",null,"INCLUDE",null,"INCLUDE",null,0,null,0,null,0,null,0,null,0,null,0]
["6381","INSURANCE PREMIUMS",null,0,null,0,null,"INCLUDE",null,0,null,0,null,0,null,0,null,0,null,0]
["6399","INSURANCE CARRIERS NOT ELSEWHERE CLASSIFIED",null,0,null,0,null,"INCLUDE",null,0,null,0,null,0,null,0,null,0,null,0]
["6513","REAL ESTATE AGENTS AND MANAGERS-RENTALS",null,"INCLUDE",null,"INCLUDE",null,"INCLUDE",null,0,null,0,null,0,null,0,null,0,null,0]
["6529","REMOTE STORED VALUE LOAD - MEMBER FIN INSTITUTION",null,0,null,0,null,0,null,0,null,0,null,0,null,0,null,0,null,0]
["6530","REMOTE STORED VALUE LOAD - MERCHANT",null,0,null,0,null,0,null,0,null,0,null,0,null,0,null,0,null,0]
["6531","PAYMENT SERVICE PROVIDER",null,0,null,0,null,0,null,0,null,0,null,0,null,0,null,0,null,0]
["6532","PSP-MEMBER-PAYMENT TRANSACTION",null,{"$f":"VLOOKUP($A194,MCCAll,4,FALSE)","v":0},null,{"$f":"VLOOKUP($A194,MCCAll,6,FALSE)","v":0},null,{"$f":"VLOOKUP($A194,MCCAll,8,FALSE)","v":0},null,{"$f":"VLOOKUP($A194,MCCAll,10,FALSE)","v":0},null,{"$f":"VLOOKUP($A194,MCCAll,12,FALSE)","v":0},null,{"$f":"VLOOKUP($A194,MCCAll,14,FALSE)","v":0},null,{"$f":"VLOOKUP($A194,MCCAll,16,FALSE)","v":0},null,{"$f":"VLOOKUP($A194,MCCAll,18,FALSE)","v":0},null,{"$f":"VLOOKUP($A194,MCCAll,20,FALSE)","v":0}]
["6533","PSP-MERCHANT-PAYMENT TRANSACTION",null,0,null,0,null,0,null,0,null,0,null,0,null,0,null,0,null,0]
["6534","MONEY TRANSFER-MEMBER",null,0,null,0,null,0,null,0,null,0,null,0,null,0,null,0,null,0]
["6535","VALUE PURCHASE-MEMBER FINANCIAL INSTITUTIONS",null,0,null,0,null,0,null,0,null,0,null,0,null,0,null,0,null,0]
["6536","MONEYSEND - INTRACOUNTRY                          ",null,0,null,0,null,"INCLUDE",null,0,null,0,null,0,null,0,null,0,null,0]
["6537","MONEYSEND - INTERCOUNTRY                          ",null,0,null,0,null,"INCLUDE",null,0,null,0,null,0,null,0,null,0,null,0]
["6538","MONEYSEND FUNDING",null,0,null,0,null,"INCLUDE",null,0,null,0,null,0,null,0,null,0,null,0]
["6540","POI FUNDING TXN",null,0,null,0,null,"INCLUDE",null,0,null,0,null,0,null,0,null,0,null,0]
["6555","MASTERCARD INITIATED REBATE/REWARD                ",null,0,null,0,null,"INCLUDE",null,0,null,0,null,0,null,0,null,0,null,0]
["7011","HOTELS ",null,"INCLUDE",null,"INCLUDE",null,0,null,0,null,0,null,0,null,0,null,0,null,0]
["7012","TIMESHARES",null,"INCLUDE",null,"INCLUDE",null,0,null,0,null,0,null,0,null,0,null,0,null,0]
["7032","SPORT/RECREATIONAL CAMPS",null,0,null,0,null,"INCLUDE",null,0,null,0,null,0,null,0,null,0,null,0]
["7033","TRAILER PARKS/CAMP SITES",null,"INCLUDE",null,"INCLUDE",null,"INCLUDE",null,0,null,0,null,0,null,0,null,0,null,0]
["7210","LAUNDRY/CLEANING/GARMENT SV",null,0,null,0,null,"INCLUDE",null,0,null,0,null,0,null,0,null,0,null,0]
["7211","LAUNDRIES-FAMILY/COMMERCIAL",null,0,null,0,null,"INCLUDE",null,0,null,0,null,0,null,0,null,0,null,0]
["7216","DRY CLEANERS",null,0,null,0,null,"INCLUDE",null,0,null,0,null,0,null,0,null,0,null,0]
["7217","CARPET/UPHOLSTERY CLEANING",null,0,null,0,null,"INCLUDE",null,0,null,0,null,0,null,0,null,0,null,0]
["7221","PHOTO STUDIOS - PORTRAITS",null,0,null,0,null,"INCLUDE",null,0,null,0,null,0,null,0,null,0,null,0]
["7230","BARBER/BEAUTY SHOPS",null,0,null,0,null,"INCLUDE",null,0,null,0,null,0,null,0,null,0,null,0]
["7251","SHOE REPAIR/SHINE/HAT CLEAN",null,0,null,0,null,"INCLUDE",null,0,null,0,null,0,null,0,null,0,null,0]
["7261","FUNERAL SERVICE/CREMATORIES",null,0,null,0,null,"INCLUDE",null,0,null,0,null,0,null,0,null,0,null,0]
["7273","DATING & ESCORT SERVICES",null,0,null,0,null,0,null,0,null,0,null,0,null,0,null,0,null,0]
["7276","TAX PREPARATION SERVICE",null,0,null,0,null,0,null,0,null,0,null,0,null,0,null,0,null,0]
["7277","COUNSELING SERVICE - ALL",null,0,null,0,null,"INCLUDE",null,0,null,0,null,0,null,0,null,0,null,0]
["7278","BUYING/SHOPPING SERVICES",null,0,null,0,null,"INCLUDE",null,0,null,0,null,0,null,0,null,0,null,0]
["7296","CLOTHING/RENT/COSTUME/UNIFO",null,0,null,0,null,"INCLUDE",null,0,null,0,null,0,null,0,null,0,null,0]
["7297","MASSAGE PARLORS",null,0,null,0,null,0,null,0,null,0,null,0,null,0,null,0,null,0]
["7298","HEALTH & BEAUTY SPAS",null,0,null,0,null,0,null,0,null,0,null,0,null,0,null,0,null,0]
["7299","MISC PERSONAL SERV",null,"INCLUDE",null,"INCLUDE",null,"INCLUDE",null,0,null,0,null,0,null,0,null,0,null,0]
["7311","ADVERTISING SERVICES",null,"INCLUDE",null,"INCLUDE",null,"INCLUDE",null,0,null,0,null,0,null,0,null,0,null,0]
["7321","CONSUMER CR REPORTING AGEN",null,0,null,0,null,"INCLUDE",null,0,null,0,null,0,null,0,null,0,null,0]
["7322","DEBT COLLECTION AGENCY",null,0,null,0,null,"INCLUDE",null,0,null,0,null,0,null,0,null,0,null,0]
["7332","BLUEPRINT AND PHOTOCOPY SERVICE",null,0,null,0,null,"INCLUDE",null,0,null,0,null,0,null,0,null,0,null,0]
["7333","COMMERCIAL PHOTO/ART/GRAPH",null,0,null,0,null,"INCLUDE",null,0,null,0,null,0,null,0,null,0,null,0]
["7338","QUICK COPY/REPRO SERVICES",null,"INCLUDE",null,"INCLUDE",null,"INCLUDE",null,0,null,0,null,0,null,0,null,0,null,0]
["7339","STENOGRAPHIC SERVICES",null,0,null,0,null,"INCLUDE",null,0,null,0,null,0,null,0,null,0,null,0]
["7342","DISINFECT/EXTERMINATE SERV",null,0,null,0,null,"INCLUDE",null,0,null,0,null,0,null,0,null,0,null,0]
["7349","CLEAN/MAINT/JANITORAL SERV",null,0,null,0,null,"INCLUDE",null,0,null,0,null,0,null,0,null,0,null,0]
["7361","EMPLOYMENT/TEMP HELP AGEN",null,"INCLUDE",null,"INCLUDE",null,"INCLUDE",null,0,null,0,null,0,null,0,null,0,null,0]
["7372","COMPUTER & D.P. SERVICES",null,0,null,0,null,"INCLUDE",null,0,null,0,null,0,null,0,null,0,null,0]
["7375","INFORMATION RETRIEVAL SVCS",null,0,null,0,null,"INCLUDE",null,0,null,0,null,0,null,0,null,0,null,0]
["7379","COMPUTER REPAIR & OTHR SVCS",null,0,null,0,null,"INCLUDE",null,0,null,0,null,0,null,0,null,0,null,0]
["7392","MGMT/CONSULT/PUBLIC REL SER",null,0,null,0,null,"INCLUDE",null,0,null,0,null,0,null,0,null,0,null,0]
["7393","DETECTIVE/PROTECTIVE AGEN",null,0,null,0,null,"INCLUDE",null,0,null,0,null,0,null,0,null,0,null,0]
["7394","EQUIP/FURN RENT/LEASE SERV",null,0,null,0,null,"INCLUDE",null,0,null,0,null,0,null,0,null,0,null,0]
["7395","PHOTOFINISH LABS/DEV",null,0,null,0,null,"INCLUDE",null,0,null,0,null,0,null,0,null,0,null,0]
["7399","BUSINESS SERVICES",null,"INCLUDE",null,"INCLUDE",null,"INCLUDE",null,0,null,0,null,0,null,0,null,0,null,0]
["7511","TRUCK STOPS",null,"INCLUDE",null,"INCLUDE",null,"INCLUDE",null,0,null,0,null,0,null,0,null,0,null,0]
["7512","AUTO RENTAL ",null,"INCLUDE",null,"INCLUDE",null,0,null,0,null,0,null,0,null,0,null,0,null,0]
["7513","TRUCK/TRAILER RENTALS",null,"INCLUDE",null,"INCLUDE",null,"INCLUDE",null,0,null,0,null,0,null,0,null,0,null,0]
["7519","MOTOR HOME/RV RENTALS",null,0,null,0,null,"INCLUDE",null,0,null,0,null,0,null,0,null,0,null,0]
["7523","AUTO PARKING LOTS/GARAGES",null,"INCLUDE",null,"INCLUDE",null,"INCLUDE",null,0,null,0,null,0,null,0,null,0,null,0]
["7524","EXPRESS PARKING LOTS/GARAGES",null,"INCLUDE",null,"INCLUDE",null,"INCLUDE",null,0,null,0,null,0,null,0,null,0,null,0]
["7531","AUTO TOP/BODY REPAIR SHOPS",null,"INCLUDE",null,"INCLUDE",null,"INCLUDE",null,0,null,0,null,0,null,0,null,0,null,0]
["7534","TIRE RETREAD/REPAIR SHOPS",null,"INCLUDE",null,"INCLUDE",null,"INCLUDE",null,0,null,0,null,0,null,0,null,0,null,0]
["7535","AUTO PAINT SHOPS",null,"INCLUDE",null,"INCLUDE",null,"INCLUDE",null,0,null,0,null,0,null,0,null,0,null,0]
["7538","AUTO REPAIR - NON DEALER",null,"INCLUDE",null,"INCLUDE",null,"INCLUDE",null,0,null,0,null,0,null,0,null,0,null,0]
["7542","CAR WASHES",null,"INCLUDE",null,"INCLUDE",null,"INCLUDE",null,0,null,0,null,0,null,0,null,0,null,0]
["7549","TOWING SERVICES",null,{"$f":"VLOOKUP($A252,MCCAll,4,FALSE)","v":"INCLUDE"},null,{"$f":"VLOOKUP($A252,MCCAll,6,FALSE)","v":"INCLUDE"},null,{"$f":"VLOOKUP($A252,MCCAll,8,FALSE)","v":"INCLUDE"},null,{"$f":"VLOOKUP($A252,MCCAll,10,FALSE)","v":0},null,{"$f":"VLOOKUP($A252,MCCAll,12,FALSE)","v":0},null,{"$f":"VLOOKUP($A252,MCCAll,14,FALSE)","v":0},null,{"$f":"VLOOKUP($A252,MCCAll,16,FALSE)","v":0},null,{"$f":"VLOOKUP($A252,MCCAll,18,FALSE)","v":0},null,{"$f":"VLOOKUP($A252,MCCAll,20,FALSE)","v":0}]
["7622","RADIO/TV/STEREO REPAIR SHOP",null,0,null,0,null,"INCLUDE",null,0,null,0,null,0,null,0,null,0,null,0]
["7623","AIR COND/REFRIG REPAIR SHOP",null,0,null,0,null,"INCLUDE",null,0,null,0,null,0,null,0,null,0,null,0]
["7629","SMALL APPLIANCE REPAIR ",null,0,null,0,null,"INCLUDE",null,0,null,0,null,0,null,0,null,0,null,0]
["7631","WATCH/CLOCK/JEWELRY REPAIR",null,0,null,0,null,"INCLUDE",null,0,null,0,null,0,null,0,null,0,null,0]
["7641","REUPHOLSTERY/REFINISH",null,0,null,0,null,"INCLUDE",null,0,null,0,null,0,null,0,null,0,null,0]
["7692","WELDING",null,"INCLUDE",null,"INCLUDE",null,"INCLUDE",null,0,null,0,null,0,null,0,null,0,null,0]
["7699","MISC REPAIR SERVICES",null,"INCLUDE",null,"INCLUDE",null,"INCLUDE",null,0,null,0,null,0,null,0,null,0,null,0]
["7800","GOVERNMENT OWNED LOTTERY",null,0,null,0,null,0,null,0,null,0,null,0,null,0,null,0,null,0]
["7801","INTERNET GAMBLING",null,0,null,0,null,0,null,0,null,0,null,0,null,0,null,0,null,0]
["7802","GOVERNMENT LICENSED HORSE/DOG RACING",null,0,null,0,null,0,null,0,null,0,null,0,null,0,null,0,null,0]
["7829","MOTION PICTURE & VIDEO DISTRB",null,0,null,0,null,"INCLUDE",null,0,null,0,null,0,null,0,null,0,null,0]
["7832","MOTION PICTURE THEATRES",null,"INCLUDE",null,"INCLUDE",null,"INCLUDE",null,0,null,0,null,0,null,0,null,0,null,0]
["7841","VIDEO TAPE RENTAL STORES",null,0,null,0,null,"INCLUDE",null,0,null,0,null,0,null,0,null,0,null,0]
["7911","DANCE HALLS/STUDIOS/SCHOOLS",null,0,null,0,null,"INCLUDE",null,0,null,0,null,0,null,0,null,0,null,0]
["7922","THEATRICAL PRODUCERS",null,0,null,0,null,"INCLUDE",null,0,null,0,null,0,null,0,null,0,null,0]
["7929","BANDS/ORCHESTRAS/ENTERTAIN",null,0,null,0,null,"INCLUDE",null,0,null,0,null,0,null,0,null,0,null,0]
["7932","BILLIARD/POOL ESTABLISHMENT",null,0,null,0,null,"INCLUDE",null,0,null,0,null,0,null,0,null,0,null,0]
["7933","BOWLING ALLEYS",null,0,null,0,null,"INCLUDE",null,0,null,0,null,0,null,0,null,0,null,0]
["7941","COMMERICAL/PRO SPORTS",null,0,null,0,null,"INCLUDE",null,0,null,0,null,0,null,0,null,0,null,0]
["7991","TOURIST ATTRACTIONS AND XHB",null,0,null,0,null,"INCLUDE",null,0,null,0,null,0,null,0,null,0,null,0]
["7992","PUBLIC GOLF COURSES",null,0,null,0,null,"INCLUDE",null,0,null,0,null,0,null,0,null,0,null,0]
["7993","VIDEO AMUSEMENT GAME SUPPLY",null,0,null,0,null,"INCLUDE",null,0,null,0,null,0,null,0,null,0,null,0]
["7994","VIDEO GAME ARCADES/ESTABLIS",null,0,null,0,null,"INCLUDE",null,0,null,0,null,0,null,0,null,0,null,0]
["7995","BETTING/TRACK/CASINO/LOTTO",null,0,null,0,null,0,null,0,null,0,null,0,null,0,null,0,null,0]
["7996","AMUSEMENT PARKS/CIRCUS",null,0,null,0,null,"INCLUDE",null,0,null,0,null,0,null,0,null,0,null,0]
["7997","MEMBER CLUBS/SPORT/REC/GOLF",null,0,null,0,null,"INCLUDE",null,0,null,0,null,0,null,0,null,0,null,0]
["7998","AQUARIUMS/REC SERV",null,0,null,0,null,"INCLUDE",null,0,null,0,null,0,null,0,null,0,null,0]
["7999","AMUSEMENT/REC SERV",null,0,null,0,null,"INCLUDE",null,0,null,0,null,0,null,0,null,0,null,0]
["8011","DOCTORS",null,0,null,0,null,"INCLUDE",null,0,null,0,null,0,null,0,null,0,null,0]
["8021","DENTISTS/ORTHODONTIST",null,0,null,0,null,"INCLUDE",null,0,null,0,null,0,null,0,null,0,null,0]
["8031","OSTEOPATHS",null,0,null,0,null,"INCLUDE",null,0,null,0,null,0,null,0,null,0,null,0]
["8041","CHIROPRACTORS",null,0,null,0,null,"INCLUDE",null,0,null,0,null,0,null,0,null,0,null,0]
["8042","OPTOMETRISTS/OPTHALMOLOGIST",null,0,null,0,null,"INCLUDE",null,0,null,0,null,0,null,0,null,0,null,0]
["8043","OPTICIANS",null,0,null,0,null,"INCLUDE",null,0,null,0,null,0,null,0,null,0,null,0]
["8044","OPTICAL GOODS & GLASSES",null,0,null,0,null,"INCLUDE",null,0,null,0,null,0,null,0,null,0,null,0]
["8049","CHIROPODISTS PODIATRISTS",null,0,null,0,null,"INCLUDE",null,0,null,0,null,0,null,0,null,0,null,0]
["8050","NURSING/PERSONAL CARE FAC",null,0,null,0,null,"INCLUDE",null,0,null,0,null,0,null,0,null,0,null,0]
["8062","HOSPITALS",null,"INCLUDE",null,"INCLUDE",null,"INCLUDE",null,0,null,0,null,0,null,0,null,0,null,0]
["8071","MEDICAL/DENTAL LABS",null,0,null,0,null,"INCLUDE",null,0,null,0,null,0,null,0,null,0,null,0]
["8099","MED/HEALTH SERVICES",null,0,null,0,null,"INCLUDE",null,0,null,0,null,0,null,0,null,0,null,0]
["8111","LEGAL SERVICES ATTORNEYS",null,"INCLUDE",null,"INCLUDE",null,"INCLUDE",null,0,null,0,null,0,null,0,null,0,null,0]
["8211","ELEMENTARY/SECONDARY SCHOOL",null,0,null,0,null,"INCLUDE",null,0,null,0,null,0,null,0,null,0,null,0]
["8220","COLLEGES/UNIV/JC/PROFESSION",null,"INCLUDE",null,"INCLUDE",null,"INCLUDE",null,0,null,0,null,0,null,0,null,0,null,0]
["8241","CORRESPONDENCE SCHOOLS",null,0,null,0,null,"INCLUDE",null,0,null,0,null,0,null,0,null,0,null,0]
["8244","BUSINESS/SECRETARIAL SCHOOL",null,"INCLUDE",null,"INCLUDE",null,"INCLUDE",null,0,null,0,null,0,null,0,null,0,null,0]
["8249","VOCATIONAL/TRADE SCHOOLS",null,"INCLUDE",null,"INCLUDE",null,"INCLUDE",null,0,null,0,null,0,null,0,null,0,null,0]
["8299","SCHOOLS - DEFAULT",null,"INCLUDE",null,"INCLUDE",null,"INCLUDE",null,0,null,0,null,0,null,0,null,0,null,0]
["8351","CHILD DAY CARE SERVICES",null,0,null,0,null,0,null,0,null,0,null,0,null,0,null,0,null,0]
["8398","CHARITABLE/SOC SERVICE ORGS",null,"INCLUDE",null,"INCLUDE",null,"INCLUDE",null,0,null,0,null,0,null,0,null,0,null,0]
["8641","CIVIC/SOCIAL/FRATERNAL ASSC",null,"INCLUDE",null,"INCLUDE",null,"INCLUDE",null,0,null,0,null,0,null,0,null,0,null,0]
["8651","POLITICAL ORGANIZATIONS",null,0,null,0,null,"INCLUDE",null,0,null,0,null,0,null,0,null,0,null,0]
["8661","RELIGIOUS ORGANIZATIONS",null,"INCLUDE",null,"INCLUDE",null,"INCLUDE",null,0,null,0,null,0,null,0,null,0,null,0]
["8675","AUTO ASSOCIATIONS",null,"INCLUDE",null,"INCLUDE",null,"INCLUDE",null,0,null,0,null,0,null,0,null,0,null,0]
["8699","MEMBER ORGANIZATIONS",null,"INCLUDE",null,"INCLUDE",null,"INCLUDE",null,0,null,0,null,0,null,0,null,0,null,0]
["8734","TESTING LABS (NON-MEDICAL)",null,0,null,0,null,"INCLUDE",null,0,null,0,null,0,null,0,null,0,null,0]
["8743","TESTING LABORATORIES (NON-MEDICAL) ",null,{"$f":"VLOOKUP($A308,MCCAll,4,FALSE)","v":0},null,{"$f":"VLOOKUP($A308,MCCAll,6,FALSE)","v":0},null,{"$f":"VLOOKUP($A308,MCCAll,8,FALSE)","v":"INCLUDE"},null,{"$f":"VLOOKUP($A308,MCCAll,10,FALSE)","v":0},null,{"$f":"VLOOKUP($A308,MCCAll,12,FALSE)","v":0},null,{"$f":"VLOOKUP($A308,MCCAll,14,FALSE)","v":0},null,{"$f":"VLOOKUP($A308,MCCAll,16,FALSE)","v":0},null,{"$f":"VLOOKUP($A308,MCCAll,18,FALSE)","v":0},null,{"$f":"VLOOKUP($A308,MCCAll,20,FALSE)","v":0}]
["8911","ARCHITECTURAL/ENG/SURVEY",null,"INCLUDE",null,"INCLUDE",null,"INCLUDE",null,0,null,0,null,0,null,0,null,0,null,0]
["8931","ACCOUNTANTS/AUDITORS/BOOKPR",null,0,null,0,null,"INCLUDE",null,0,null,0,null,0,null,0,null,0,null,0]
["8999","PROFESSIONAL SERVICES",null,"INCLUDE",null,"INCLUDE",null,"INCLUDE",null,0,null,0,null,0,null,0,null,0,null,0]
["9211","COURT COSTS/ALIMONY/SUPPORT",null,0,null,0,null,"INCLUDE",null,0,null,0,null,0,null,0,null,0,null,0]
["9222","FINES",null,"INCLUDE",null,"INCLUDE",null,0,null,0,null,0,null,0,null,0,null,0,null,0]
["9223","BAIL AND BOND PAYMENTS",null,0,null,0,null,0,null,0,null,0,null,0,null,0,null,0,null,0]
["9311","TAX PAYMENTS",null,0,null,0,null,0,null,0,null,0,null,0,null,0,null,0,null,0]
["9399","GOV'T SERVICES",null,"INCLUDE",null,"INCLUDE",null,"INCLUDE",null,0,null,0,null,0,null,0,null,0,null,0]
["9401","I-PURCHASING PILOT",null,{"$f":"VLOOKUP($A317,MCCAll,4,FALSE)","v":0},null,{"$f":"VLOOKUP($A317,MCCAll,6,FALSE)","v":0},null,{"$f":"VLOOKUP($A317,MCCAll,8,FALSE)","v":0},null,{"$f":"VLOOKUP($A317,MCCAll,10,FALSE)","v":0},null,{"$f":"VLOOKUP($A317,MCCAll,12,FALSE)","v":0},null,{"$f":"VLOOKUP($A317,MCCAll,14,FALSE)","v":0},null,{"$f":"VLOOKUP($A317,MCCAll,16,FALSE)","v":0},null,{"$f":"VLOOKUP($A317,MCCAll,18,FALSE)","v":0},null,{"$f":"VLOOKUP($A317,MCCAll,20,FALSE)","v":0}]
["9402","POSTAGE STAMPS",null,{"$f":"VLOOKUP($A318,MCCAll,4,FALSE)","v":0},null,{"$f":"VLOOKUP($A318,MCCAll,6,FALSE)","v":0},null,{"$f":"VLOOKUP($A318,MCCAll,8,FALSE)","v":"INCLUDE"},null,{"$f":"VLOOKUP($A318,MCCAll,10,FALSE)","v":0},null,{"$f":"VLOOKUP($A318,MCCAll,12,FALSE)","v":0},null,{"$f":"VLOOKUP($A318,MCCAll,14,FALSE)","v":0},null,{"$f":"VLOOKUP($A318,MCCAll,16,FALSE)","v":0},null,{"$f":"VLOOKUP($A318,MCCAll,18,FALSE)","v":0},null,{"$f":"VLOOKUP($A318,MCCAll,20,FALSE)","v":0}]
["9405","INTRA-GOVERNMENT PURCHASES--GOVERNMENT ONLY",null,{"$f":"VLOOKUP($A319,MCCAll,4,FALSE)","v":0},null,{"$f":"VLOOKUP($A319,MCCAll,6,FALSE)","v":0},null,{"$f":"VLOOKUP($A319,MCCAll,8,FALSE)","v":"INCLUDE"},null,{"$f":"VLOOKUP($A319,MCCAll,10,FALSE)","v":0},null,{"$f":"VLOOKUP($A319,MCCAll,12,FALSE)","v":0},null,{"$f":"VLOOKUP($A319,MCCAll,14,FALSE)","v":0},null,{"$f":"VLOOKUP($A319,MCCAll,16,FALSE)","v":0},null,{"$f":"VLOOKUP($A319,MCCAll,18,FALSE)","v":0},null,{"$f":"VLOOKUP($A319,MCCAll,20,FALSE)","v":0}]
["9406","GOVERNMENT OWNED LOTTERY - SPECIFIC CTRY",null,0,null,0,null,0,null,0,null,0,null,0,null,0,null,0,null,0]
["9700","AUTOMATED REFERRAL SERVICE",null,0,null,0,null,0,null,0,null,0,null,0,null,0,null,0,null,0]
["9701","VISA CREDENTIAL SERVER",null,0,null,0,null,"INCLUDE",null,0,null,0,null,0,null,0,null,0,null,0]
["9702","GCAS EMERGENCY SERVICES",null,0,null,0,null,"INCLUDE",null,0,null,0,null,0,null,0,null,0,null,0]
["9751","MERCHANDISE/U.K SUPERMARKETS",null,0,null,0,null,"INCLUDE",null,0,null,0,null,0,null,0,null,0,null,0]
["9752","GAS/AUTOMOTIVE/U.K. PETROL STATIONS-ELECTRONIC HOT FILE",null,"INCLUDE",null,"INCLUDE",null,"INCLUDE",null,0,null,0,null,0,null,0,null,0,null,0]
["9753","CONSUMER ELECTRONICS/FURNITURE STORE",null,{"$f":"VLOOKUP($A326,MCCAll,4,FALSE)","v":0},null,{"$f":"VLOOKUP($A326,MCCAll,6,FALSE)","v":0},null,{"$f":"VLOOKUP($A326,MCCAll,8,FALSE)","v":"INCLUDE"},null,{"$f":"VLOOKUP($A326,MCCAll,10,FALSE)","v":0},null,{"$f":"VLOOKUP($A326,MCCAll,12,FALSE)","v":0},null,{"$f":"VLOOKUP($A326,MCCAll,14,FALSE)","v":0},null,{"$f":"VLOOKUP($A326,MCCAll,16,FALSE)","v":0},null,{"$f":"VLOOKUP($A326,MCCAll,18,FALSE)","v":0},null,{"$f":"VLOOKUP($A326,MCCAll,20,FALSE)","v":0}]
["9754","GAMBLING-HORSE RACING, DOG RACING, LOTTERIES",null,{"$f":"VLOOKUP($A327,MCCAll,4,FALSE)","v":0},null,{"$f":"VLOOKUP($A327,MCCAll,6,FALSE)","v":0},null,{"$f":"VLOOKUP($A327,MCCAll,8,FALSE)","v":0},null,{"$f":"VLOOKUP($A327,MCCAll,10,FALSE)","v":0},null,{"$f":"VLOOKUP($A327,MCCAll,12,FALSE)","v":0},null,{"$f":"VLOOKUP($A327,MCCAll,14,FALSE)","v":0},null,{"$f":"VLOOKUP($A327,MCCAll,16,FALSE)","v":0},null,{"$f":"VLOOKUP($A327,MCCAll,18,FALSE)","v":0},null,{"$f":"VLOOKUP($A327,MCCAll,20,FALSE)","v":0}]
["9950","INTRA-COMPANY PURCHASES",null,0,null,0,null,"INCLUDE",null,0,null,0,null,0,null,0,null,0,null,0]

{"sheet":"Version","index":4,"n_rows":13,"n_cols":4,"rows_kept":13,"cut":false,"hidden":true,"merged":[[2,0,2,3],[3,0,3,3]]}
[]
[]
["This tab is used for version tracking purposes only?\nCreated 12-29-17\n*Annual review is the end of April and October as Visa and MC add and delete codes in mid April and October yearly"]
["Item # 5773 MCC Group Template Customizable"]
["Date","Version","Changes","By"]
["2018-04-30",2.1,"The following MCC Codes listed below were added by the Merchant Banks and have now been added to the MCC Group Template Customizable spreadsheet. Since these codes are already in a range of MCCs in the Travel and One Card templates it was not necessary to update those.\n3301 Wizz Air\n3834 Baymont Inn & Suites\n3835 Dolce\n3836 Hawthorne Suites by Wyndham","Theresa Wahl"]
["2018-07-10",2.2000000000000002,"Entry 354 in procedure site not completed as project stalled so no updates made but maintained change in version #","Theresa Wahl"]
["2018-09-12",2.2999999999999998,"Off cycle review - moved MCC 9406 Government Owned Lottery to permanent exclusion update to v1.3","Theresa Wahl"]
["2018-10-18",2.2999999999999998,"Script to create TSYS template updated to remove 9406 from TSYS template as it is a High Risk Code","Phil W"]
["2018-11-15",2.4,"Semi Annual Review After comparison of codes in TSYS and PN the following codes were added to the list:\nAirlines(covered in string but not on list for Air, Car & Hotels)\n3019 GRMNWGAIR\n3069 SUNCTRYAIR\n3081 NORDAIR\n3092 MIDWAY AIRLINES\n3192 IRAN NATIONAL\n3253 AMERICA WEST\n3265 AIRSPUR HELICOPTERS\n3300 AZUL AIR\n3301 WIZZ AIR\nHotels (these two have codes entered incorrectly in TSYS as 3273 & 3274 which has been escalated to product to correct)\n3723 Rica Hotels\n3724 InterNor Hotels\n3816 HOME2 SUITES\n3817 AFFINIA\n3823 GRAND SIERRA RESORT\nCar Rental:\n3351 AFFILIATED AUTO RENTAL\nMiscellaneous Codes\n5262 MARKETPLACES\n5552 ELECTRIC CAR CHARGING\n\n\n","Theresa Wahl"]
["2019-01-08",2.5,"Moved MCC 6540 PIO Funding TXN from Cash MCC to Financial Services category PIO Funding TXN based on email approval from Kchristopherson","Theresa Wahl"]
["2019-05-20",2.6,"Semi Annual Review After comparison of codes in TSYS and PN the following codes were added to the list:                                         Utility Services:                                                    4815 VISA Phone                                                Retail Outlet Service:                                         5262 MARKET PLACES                                        5552 ELECTRIC CAR CHARGING                    Business Services:                                              9753 CONSUMER ELECTRONICS/FURNITURE STORE                      9950 INTRA-COMPANY PURCHASES","Jennifer Backsmeier"]
["2019-11-19",2.7,"Semi Annual Review After comparison of codes in TSYS and PN no updates required","Heather Horan"]